{"text_format":"1","workbook":"xlsx","n_sheets":6,"sheets":["Vstupné údaje","Výsledky MUŽI","Výsledky ŽENY","Výsledky MUŽI nad 35 rokov","Výsledky DORASTENCI","Výsledky DORASTENKY"],"not_rendered":{"charts":0,"images":0,"macros":1,"external_links":0,"defined_names":0,"comments":0,"pivot_tables":0},"unopened":[],"bounds":{"document_bytes":16777216,"sheet_cells":100000,"rows_first":2000,"rows_last":500,"rows_between":2000,"halvings":0,"cell_chars":16384,"cell_head_chars":4096},"cells_cut":0,"cells_raw":0,"read":"whole","date_system":"1900"}

{"sheet":"Vstupné údaje","index":0,"n_rows":7,"n_cols":2,"rows_kept":7,"cut":false,"hidden":false,"merged":[[0,0,0,1]]}
["Vstupné údaje"]
[]
["Požadovaný údaj","Hodnota"]
["Názov súťaže","Memoriál baróna Friesenhofa"]
["Dátum",{"$f":"TODAY()","v":"2026-06-06"}]
["Začiatok","14:00:00"]
["Kolo v ročníku",1]

{"sheet":"Výsledky MUŽI","index":1,"n_rows":30,"n_cols":13,"rows_kept":30,"cut":false,"hidden":false,"merged":[[0,0,0,7],[1,0,1,7],[0,12,1,12],[21,12,22,12]]}
[{"$f":"'Vstupné údaje'!$B$4","v":"Memoriál baróna Friesenhofa"},null,null,null,null,null,null,null,null,null,null,null,"Návod na plnohodnotnú prácu s výsledkami"]
[{"$f":"CONCATENATE(\"Výsledky \",'Vstupné údaje'!$B$7,\". kola SMHL \",TEXT('Vstupné údaje'!$B$5,\"yyyy\"),\" v kategórii MUŽI, ktoré sa konalo \",TEXT('Vstupné údaje'!$B$5,\"dd.mm.yyyy\"),\" o \",TEXT('Vstupné údaje'!$B$6,\"hh:mm\"))","v":"Výsledky 1. kola SMHL 2026 v kategórii MUŽI, ktoré sa konalo 06.06.2026 o 14:00"}]
[]
["Por.","Družstvo","Okres","ĽP","PP","Výs. čas","Body","Prestup",null,null,null,null,"Pri zadávaní výsledkov sa vypĺňajú nasledujúce stĺpce (zvyšné sa vypočítajú automaticky):"]
[{"$f":"IF(Výsledky_MUŽI[[#This Row],[Výs. čas]]=\"čas\",\"---\",IF(Výsledky_MUŽI[[#This Row],[Výs. čas]]=99.99,\"---\",IF(Výsledky_MUŽI[[#This Row],[Výs. čas]]=\"Diskv.\",\"---\",IF(Výsledky_MUŽI[[#This Row],[Výs. čas]]=\"Neúčasť\",\"---\",_xlfn.RANK.EQ(Výsledky_MUŽI[[#This Row],[Výs. čas]],Výsledky_MUŽI[Výs. čas],1)))))","v":1},"Pavlice",null," ",13.48,13.48,{"$f":"IF(Výsledky_MUŽI[[#This Row],[Por.]]=1,20,IF(Výsledky_MUŽI[[#This Row],[Por.]]=2,17,IF(Výsledky_MUŽI[[#This Row],[Por.]]=3,15,IF(Výsledky_MUŽI[[#This Row],[Por.]]=4,13,IF(Výsledky_MUŽI[[#This Row],[Por.]]=5,11,IF(Výsledky_MUŽI[[#This Row],[Por.]]=6,9,IF(Výsledky_MUŽI[[#This Row],[Por.]]=7,8,IF(Výsledky_MUŽI[[#This Row],[Por.]]=8,7,IF(Výsledky_MUŽI[[#This Row],[Por.]]=9,6,IF(Výsledky_MUŽI[[#This Row],[Por.]]=10,5,IF(Výsledky_MUŽI[[#This Row],[Por.]]=11,4,IF(Výsledky_MUŽI[[#This Row],[Por.]]=12,3,IF(Výsledky_MUŽI[[#This Row],[Výs. čas]]=99.99,1,IF(Výsledky_MUŽI[[#This Row],[Výs. čas]]=\"Diskv.\",1,IF(Výsledky_MUŽI[[#This Row],[Výs. čas]]=\"Neúčasť\",0,2)))))))))))))))","v":20},null,null,null,null,null,"--- družstvo"]
[{"$f":"IF(Výsledky_MUŽI[[#This Row],[Výs. čas]]=\"čas\",\"---\",IF(Výsledky_MUŽI[[#This Row],[Výs. čas]]=99.99,\"---\",IF(Výsledky_MUŽI[[#This Row],[Výs. čas]]=\"Diskv.\",\"---\",IF(Výsledky_MUŽI[[#This Row],[Výs. čas]]=\"Neúčasť\",\"---\",_xlfn.RANK.EQ(Výsledky_MUŽI[[#This Row],[Výs. čas]],Výsledky_MUŽI[Výs. čas],1)))))","v":2},"Lednica",null,13.77,13.9,13.9,{"$f":"IF(Výsledky_MUŽI[[#This Row],[Por.]]=1,20,IF(Výsledky_MUŽI[[#This Row],[Por.]]=2,17,IF(Výsledky_MUŽI[[#This Row],[Por.]]=3,15,IF(Výsledky_MUŽI[[#This Row],[Por.]]=4,13,IF(Výsledky_MUŽI[[#This Row],[Por.]]=5,11,IF(Výsledky_MUŽI[[#This Row],[Por.]]=6,9,IF(Výsledky_MUŽI[[#This Row],[Por.]]=7,8,IF(Výsledky_MUŽI[[#This Row],[Por.]]=8,7,IF(Výsledky_MUŽI[[#This Row],[Por.]]=9,6,IF(Výsledky_MUŽI[[#This Row],[Por.]]=10,5,IF(Výsledky_MUŽI[[#This Row],[Por.]]=11,4,IF(Výsledky_MUŽI[[#This Row],[Por.]]=12,3,IF(Výsledky_MUŽI[[#This Row],[Výs. čas]]=99.99,1,IF(Výsledky_MUŽI[[#This Row],[Výs. čas]]=\"Diskv.\",1,IF(Výsledky_MUŽI[[#This Row],[Výs. čas]]=\"Neúčasť\",0,2)))))))))))))))","v":17},"x",null,null,null,null,"--- okres"]
[{"$f":"IF(Výsledky_MUŽI[[#This Row],[Výs. čas]]=\"čas\",\"---\",IF(Výsledky_MUŽI[[#This Row],[Výs. čas]]=99.99,\"---\",IF(Výsledky_MUŽI[[#This Row],[Výs. čas]]=\"Diskv.\",\"---\",IF(Výsledky_MUŽI[[#This Row],[Výs. čas]]=\"Neúčasť\",\"---\",_xlfn.RANK.EQ(Výsledky_MUŽI[[#This Row],[Výs. čas]],Výsledky_MUŽI[Výs. čas],1)))))","v":3},"Hoštiná",null,14.15,13.85,14.15,{"$f":"IF(Výsledky_MUŽI[[#This Row],[Por.]]=1,20,IF(Výsledky_MUŽI[[#This Row],[Por.]]=2,17,IF(Výsledky_MUŽI[[#This Row],[Por.]]=3,15,IF(Výsledky_MUŽI[[#This Row],[Por.]]=4,13,IF(Výsledky_MUŽI[[#This Row],[Por.]]=5,11,IF(Výsledky_MUŽI[[#This Row],[Por.]]=6,9,IF(Výsledky_MUŽI[[#This Row],[Por.]]=7,8,IF(Výsledky_MUŽI[[#This Row],[Por.]]=8,7,IF(Výsledky_MUŽI[[#This Row],[Por.]]=9,6,IF(Výsledky_MUŽI[[#This Row],[Por.]]=10,5,IF(Výsledky_MUŽI[[#This Row],[Por.]]=11,4,IF(Výsledky_MUŽI[[#This Row],[Por.]]=12,3,IF(Výsledky_MUŽI[[#This Row],[Výs. čas]]=99.99,1,IF(Výsledky_MUŽI[[#This Row],[Výs. čas]]=\"Diskv.\",1,IF(Výsledky_MUŽI[[#This Row],[Výs. čas]]=\"Neúčasť\",0,2)))))))))))))))","v":15},null,null,null,null,null,"--- ľavý prúd (ĽP)"]
[{"$f":"IF(Výsledky_MUŽI[[#This Row],[Výs. čas]]=\"čas\",\"---\",IF(Výsledky_MUŽI[[#This Row],[Výs. čas]]=99.99,\"---\",IF(Výsledky_MUŽI[[#This Row],[Výs. čas]]=\"Diskv.\",\"---\",IF(Výsledky_MUŽI[[#This Row],[Výs. čas]]=\"Neúčasť\",\"---\",_xlfn.RANK.EQ(Výsledky_MUŽI[[#This Row],[Výs. čas]],Výsledky_MUŽI[Výs. čas],1)))))","v":4},"Poľný Kesov",null,13.2,14.28,14.28,{"$f":"IF(Výsledky_MUŽI[[#This Row],[Por.]]=1,20,IF(Výsledky_MUŽI[[#This Row],[Por.]]=2,17,IF(Výsledky_MUŽI[[#This Row],[Por.]]=3,15,IF(Výsledky_MUŽI[[#This Row],[Por.]]=4,13,IF(Výsledky_MUŽI[[#This Row],[Por.]]=5,11,IF(Výsledky_MUŽI[[#This Row],[Por.]]=6,9,IF(Výsledky_MUŽI[[#This Row],[Por.]]=7,8,IF(Výsledky_MUŽI[[#This Row],[Por.]]=8,7,IF(Výsledky_MUŽI[[#This Row],[Por.]]=9,6,IF(Výsledky_MUŽI[[#This Row],[Por.]]=10,5,IF(Výsledky_MUŽI[[#This Row],[Por.]]=11,4,IF(Výsledky_MUŽI[[#This Row],[Por.]]=12,3,IF(Výsledky_MUŽI[[#This Row],[Výs. čas]]=99.99,1,IF(Výsledky_MUŽI[[#This Row],[Výs. čas]]=\"Diskv.\",1,IF(Výsledky_MUŽI[[#This Row],[Výs. čas]]=\"Neúčasť\",0,2)))))))))))))))","v":13},null,null,null,null,null,"--- pravý prúd (PP)"]
[{"$f":"IF(Výsledky_MUŽI[[#This Row],[Výs. čas]]=\"čas\",\"---\",IF(Výsledky_MUŽI[[#This Row],[Výs. čas]]=99.99,\"---\",IF(Výsledky_MUŽI[[#This Row],[Výs. čas]]=\"Diskv.\",\"---\",IF(Výsledky_MUŽI[[#This Row],[Výs. čas]]=\"Neúčasť\",\"---\",_xlfn.RANK.EQ(Výsledky_MUŽI[[#This Row],[Výs. čas]],Výsledky_MUŽI[Výs. čas],1)))))","v":5},"Hrabové",null,14.49,14.54,14.54,{"$f":"IF(Výsledky_MUŽI[[#This Row],[Por.]]=1,20,IF(Výsledky_MUŽI[[#This Row],[Por.]]=2,17,IF(Výsledky_MUŽI[[#This Row],[Por.]]=3,15,IF(Výsledky_MUŽI[[#This Row],[Por.]]=4,13,IF(Výsledky_MUŽI[[#This Row],[Por.]]=5,11,IF(Výsledky_MUŽI[[#This Row],[Por.]]=6,9,IF(Výsledky_MUŽI[[#This Row],[Por.]]=7,8,IF(Výsledky_MUŽI[[#This Row],[Por.]]=8,7,IF(Výsledky_MUŽI[[#This Row],[Por.]]=9,6,IF(Výsledky_MUŽI[[#This Row],[Por.]]=10,5,IF(Výsledky_MUŽI[[#This Row],[Por.]]=11,4,IF(Výsledky_MUŽI[[#This Row],[Por.]]=12,3,IF(Výsledky_MUŽI[[#This Row],[Výs. čas]]=99.99,1,IF(Výsledky_MUŽI[[#This Row],[Výs. čas]]=\"Diskv.\",1,IF(Výsledky_MUŽI[[#This Row],[Výs. čas]]=\"Neúčasť\",0,2)))))))))))))))","v":11},"x",null,null,null,null,"--- prestup"]
[{"$f":"IF(Výsledky_MUŽI[[#This Row],[Výs. čas]]=\"čas\",\"---\",IF(Výsledky_MUŽI[[#This Row],[Výs. čas]]=99.99,\"---\",IF(Výsledky_MUŽI[[#This Row],[Výs. čas]]=\"Diskv.\",\"---\",IF(Výsledky_MUŽI[[#This Row],[Výs. čas]]=\"Neúčasť\",\"---\",_xlfn.RANK.EQ(Výsledky_MUŽI[[#This Row],[Výs. čas]],Výsledky_MUŽI[Výs. čas],1)))))","v":6},"Ďurďové",null,13.4,14.6,14.6,{"$f":"IF(Výsledky_MUŽI[[#This Row],[Por.]]=1,20,IF(Výsledky_MUŽI[[#This Row],[Por.]]=2,17,IF(Výsledky_MUŽI[[#This Row],[Por.]]=3,15,IF(Výsledky_MUŽI[[#This Row],[Por.]]=4,13,IF(Výsledky_MUŽI[[#This Row],[Por.]]=5,11,IF(Výsledky_MUŽI[[#This Row],[Por.]]=6,9,IF(Výsledky_MUŽI[[#This Row],[Por.]]=7,8,IF(Výsledky_MUŽI[[#This Row],[Por.]]=8,7,IF(Výsledky_MUŽI[[#This Row],[Por.]]=9,6,IF(Výsledky_MUŽI[[#This Row],[Por.]]=10,5,IF(Výsledky_MUŽI[[#This Row],[Por.]]=11,4,IF(Výsledky_MUŽI[[#This Row],[Por.]]=12,3,IF(Výsledky_MUŽI[[#This Row],[Výs. čas]]=99.99,1,IF(Výsledky_MUŽI[[#This Row],[Výs. čas]]=\"Diskv.\",1,IF(Výsledky_MUŽI[[#This Row],[Výs. čas]]=\"Neúčasť\",0,2)))))))))))))))","v":9}]
[{"$f":"IF(Výsledky_MUŽI[[#This Row],[Výs. čas]]=\"čas\",\"---\",IF(Výsledky_MUŽI[[#This Row],[Výs. čas]]=99.99,\"---\",IF(Výsledky_MUŽI[[#This Row],[Výs. čas]]=\"Diskv.\",\"---\",IF(Výsledky_MUŽI[[#This Row],[Výs. čas]]=\"Neúčasť\",\"---\",_xlfn.RANK.EQ(Výsledky_MUŽI[[#This Row],[Výs. čas]],Výsledky_MUŽI[Výs. čas],1)))))","v":7},"Ďurďové \"B\"",null,14.65,13.95,14.65,{"$f":"IF(Výsledky_MUŽI[[#This Row],[Por.]]=1,20,IF(Výsledky_MUŽI[[#This Row],[Por.]]=2,17,IF(Výsledky_MUŽI[[#This Row],[Por.]]=3,15,IF(Výsledky_MUŽI[[#This Row],[Por.]]=4,13,IF(Výsledky_MUŽI[[#This Row],[Por.]]=5,11,IF(Výsledky_MUŽI[[#This Row],[Por.]]=6,9,IF(Výsledky_MUŽI[[#This Row],[Por.]]=7,8,IF(Výsledky_MUŽI[[#This Row],[Por.]]=8,7,IF(Výsledky_MUŽI[[#This Row],[Por.]]=9,6,IF(Výsledky_MUŽI[[#This Row],[Por.]]=10,5,IF(Výsledky_MUŽI[[#This Row],[Por.]]=11,4,IF(Výsledky_MUŽI[[#This Row],[Por.]]=12,3,IF(Výsledky_MUŽI[[#This Row],[Výs. čas]]=99.99,1,IF(Výsledky_MUŽI[[#This Row],[Výs. čas]]=\"Diskv.\",1,IF(Výsledky_MUŽI[[#This Row],[Výs. čas]]=\"Neúčasť\",0,2)))))))))))))))","v":8},"x",null,null,null,null,"Dovolený formát zadávaných údajov:"]
[{"$f":"IF(Výsledky_MUŽI[[#This Row],[Výs. čas]]=\"čas\",\"---\",IF(Výsledky_MUŽI[[#This Row],[Výs. čas]]=99.99,\"---\",IF(Výsledky_MUŽI[[#This Row],[Výs. čas]]=\"Diskv.\",\"---\",IF(Výsledky_MUŽI[[#This Row],[Výs. čas]]=\"Neúčasť\",\"---\",_xlfn.RANK.EQ(Výsledky_MUŽI[[#This Row],[Výs. čas]],Výsledky_MUŽI[Výs. čas],1)))))","v":8},"Krásno",null,14.61,14.78,14.78,{"$f":"IF(Výsledky_MUŽI[[#This Row],[Por.]]=1,20,IF(Výsledky_MUŽI[[#This Row],[Por.]]=2,17,IF(Výsledky_MUŽI[[#This Row],[Por.]]=3,15,IF(Výsledky_MUŽI[[#This Row],[Por.]]=4,13,IF(Výsledky_MUŽI[[#This Row],[Por.]]=5,11,IF(Výsledky_MUŽI[[#This Row],[Por.]]=6,9,IF(Výsledky_MUŽI[[#This Row],[Por.]]=7,8,IF(Výsledky_MUŽI[[#This Row],[Por.]]=8,7,IF(Výsledky_MUŽI[[#This Row],[Por.]]=9,6,IF(Výsledky_MUŽI[[#This Row],[Por.]]=10,5,IF(Výsledky_MUŽI[[#This Row],[Por.]]=11,4,IF(Výsledky_MUŽI[[#This Row],[Por.]]=12,3,IF(Výsledky_MUŽI[[#This Row],[Výs. čas]]=99.99,1,IF(Výsledky_MUŽI[[#This Row],[Výs. čas]]=\"Diskv.\",1,IF(Výsledky_MUŽI[[#This Row],[Výs. čas]]=\"Neúčasť\",0,2)))))))))))))))","v":7},null,null,null,null,null,"Družstvo, okres"]
[{"$f":"IF(Výsledky_MUŽI[[#This Row],[Výs. čas]]=\"čas\",\"---\",IF(Výsledky_MUŽI[[#This Row],[Výs. čas]]=99.99,\"---\",IF(Výsledky_MUŽI[[#This Row],[Výs. čas]]=\"Diskv.\",\"---\",IF(Výsledky_MUŽI[[#This Row],[Výs. čas]]=\"Neúčasť\",\"---\",_xlfn.RANK.EQ(Výsledky_MUŽI[[#This Row],[Výs. čas]],Výsledky_MUŽI[Výs. čas],1)))))","v":9},"Nová Dedina",null,14.5,15.17,15.17,{"$f":"IF(Výsledky_MUŽI[[#This Row],[Por.]]=1,20,IF(Výsledky_MUŽI[[#This Row],[Por.]]=2,17,IF(Výsledky_MUŽI[[#This Row],[Por.]]=3,15,IF(Výsledky_MUŽI[[#This Row],[Por.]]=4,13,IF(Výsledky_MUŽI[[#This Row],[Por.]]=5,11,IF(Výsledky_MUŽI[[#This Row],[Por.]]=6,9,IF(Výsledky_MUŽI[[#This Row],[Por.]]=7,8,IF(Výsledky_MUŽI[[#This Row],[Por.]]=8,7,IF(Výsledky_MUŽI[[#This Row],[Por.]]=9,6,IF(Výsledky_MUŽI[[#This Row],[Por.]]=10,5,IF(Výsledky_MUŽI[[#This Row],[Por.]]=11,4,IF(Výsledky_MUŽI[[#This Row],[Por.]]=12,3,IF(Výsledky_MUŽI[[#This Row],[Výs. čas]]=99.99,1,IF(Výsledky_MUŽI[[#This Row],[Výs. čas]]=\"Diskv.\",1,IF(Výsledky_MUŽI[[#This Row],[Výs. čas]]=\"Neúčasť\",0,2)))))))))))))))","v":6},null,null,null,null,null,"--- ľubovoľný text"]
[{"$f":"IF(Výsledky_MUŽI[[#This Row],[Výs. čas]]=\"čas\",\"---\",IF(Výsledky_MUŽI[[#This Row],[Výs. čas]]=99.99,\"---\",IF(Výsledky_MUŽI[[#This Row],[Výs. čas]]=\"Diskv.\",\"---\",IF(Výsledky_MUŽI[[#This Row],[Výs. čas]]=\"Neúčasť\",\"---\",_xlfn.RANK.EQ(Výsledky_MUŽI[[#This Row],[Výs. čas]],Výsledky_MUŽI[Výs. čas],1)))))","v":10},"Dohňany",null,15.89,14.63,15.89,{"$f":"IF(Výsledky_MUŽI[[#This Row],[Por.]]=1,20,IF(Výsledky_MUŽI[[#This Row],[Por.]]=2,17,IF(Výsledky_MUŽI[[#This Row],[Por.]]=3,15,IF(Výsledky_MUŽI[[#This Row],[Por.]]=4,13,IF(Výsledky_MUŽI[[#This Row],[Por.]]=5,11,IF(Výsledky_MUŽI[[#This Row],[Por.]]=6,9,IF(Výsledky_MUŽI[[#This Row],[Por.]]=7,8,IF(Výsledky_MUŽI[[#This Row],[Por.]]=8,7,IF(Výsledky_MUŽI[[#This Row],[Por.]]=9,6,IF(Výsledky_MUŽI[[#This Row],[Por.]]=10,5,IF(Výsledky_MUŽI[[#This Row],[Por.]]=11,4,IF(Výsledky_MUŽI[[#This Row],[Por.]]=12,3,IF(Výsledky_MUŽI[[#This Row],[Výs. čas]]=99.99,1,IF(Výsledky_MUŽI[[#This Row],[Výs. čas]]=\"Diskv.\",1,IF(Výsledky_MUŽI[[#This Row],[Výs. čas]]=\"Neúčasť\",0,2)))))))))))))))","v":5},null,null,null,null,null,"Ľavý/pravý prúd"]
[{"$f":"IF(Výsledky_MUŽI[[#This Row],[Výs. čas]]=\"čas\",\"---\",IF(Výsledky_MUŽI[[#This Row],[Výs. čas]]=99.99,\"---\",IF(Výsledky_MUŽI[[#This Row],[Výs. čas]]=\"Diskv.\",\"---\",IF(Výsledky_MUŽI[[#This Row],[Výs. čas]]=\"Neúčasť\",\"---\",_xlfn.RANK.EQ(Výsledky_MUŽI[[#This Row],[Výs. čas]],Výsledky_MUŽI[Výs. čas],1)))))","v":11},"Ostrý Grúň",null,16.84,15.83,16.84,{"$f":"IF(Výsledky_MUŽI[[#This Row],[Por.]]=1,20,IF(Výsledky_MUŽI[[#This Row],[Por.]]=2,17,IF(Výsledky_MUŽI[[#This Row],[Por.]]=3,15,IF(Výsledky_MUŽI[[#This Row],[Por.]]=4,13,IF(Výsledky_MUŽI[[#This Row],[Por.]]=5,11,IF(Výsledky_MUŽI[[#This Row],[Por.]]=6,9,IF(Výsledky_MUŽI[[#This Row],[Por.]]=7,8,IF(Výsledky_MUŽI[[#This Row],[Por.]]=8,7,IF(Výsledky_MUŽI[[#This Row],[Por.]]=9,6,IF(Výsledky_MUŽI[[#This Row],[Por.]]=10,5,IF(Výsledky_MUŽI[[#This Row],[Por.]]=11,4,IF(Výsledky_MUŽI[[#This Row],[Por.]]=12,3,IF(Výsledky_MUŽI[[#This Row],[Výs. čas]]=99.99,1,IF(Výsledky_MUŽI[[#This Row],[Výs. čas]]=\"Diskv.\",1,IF(Výsledky_MUŽI[[#This Row],[Výs. čas]]=\"Neúčasť\",0,2)))))))))))))))","v":4},null,null,null,null,null,"14.00 --- dokončený pokus"]
[{"$f":"IF(Výsledky_MUŽI[[#This Row],[Výs. čas]]=\"čas\",\"---\",IF(Výsledky_MUŽI[[#This Row],[Výs. čas]]=99.99,\"---\",IF(Výsledky_MUŽI[[#This Row],[Výs. čas]]=\"Diskv.\",\"---\",IF(Výsledky_MUŽI[[#This Row],[Výs. čas]]=\"Neúčasť\",\"---\",_xlfn.RANK.EQ(Výsledky_MUŽI[[#This Row],[Výs. čas]],Výsledky_MUŽI[Výs. čas],1)))))","v":12},"Topoľčianky",null,15.01,17.190000000000001,17.190000000000001,{"$f":"IF(Výsledky_MUŽI[[#This Row],[Por.]]=1,20,IF(Výsledky_MUŽI[[#This Row],[Por.]]=2,17,IF(Výsledky_MUŽI[[#This Row],[Por.]]=3,15,IF(Výsledky_MUŽI[[#This Row],[Por.]]=4,13,IF(Výsledky_MUŽI[[#This Row],[Por.]]=5,11,IF(Výsledky_MUŽI[[#This Row],[Por.]]=6,9,IF(Výsledky_MUŽI[[#This Row],[Por.]]=7,8,IF(Výsledky_MUŽI[[#This Row],[Por.]]=8,7,IF(Výsledky_MUŽI[[#This Row],[Por.]]=9,6,IF(Výsledky_MUŽI[[#This Row],[Por.]]=10,5,IF(Výsledky_MUŽI[[#This Row],[Por.]]=11,4,IF(Výsledky_MUŽI[[#This Row],[Por.]]=12,3,IF(Výsledky_MUŽI[[#This Row],[Výs. čas]]=99.99,1,IF(Výsledky_MUŽI[[#This Row],[Výs. čas]]=\"Diskv.\",1,IF(Výsledky_MUŽI[[#This Row],[Výs. čas]]=\"Neúčasť\",0,2)))))))))))))))","v":3},null,null,null,null,null,"99.99 --- nedokončený pokus"]
[{"$f":"IF(Výsledky_MUŽI[[#This Row],[Výs. čas]]=\"čas\",\"---\",IF(Výsledky_MUŽI[[#This Row],[Výs. čas]]=99.99,\"---\",IF(Výsledky_MUŽI[[#This Row],[Výs. čas]]=\"Diskv.\",\"---\",IF(Výsledky_MUŽI[[#This Row],[Výs. čas]]=\"Neúčasť\",\"---\",_xlfn.RANK.EQ(Výsledky_MUŽI[[#This Row],[Výs. čas]],Výsledky_MUŽI[Výs. čas],1)))))","v":13},"Štiavnické Bane",null,16.850000000000001,17.2,17.2,{"$f":"IF(Výsledky_MUŽI[[#This Row],[Por.]]=1,20,IF(Výsledky_MUŽI[[#This Row],[Por.]]=2,17,IF(Výsledky_MUŽI[[#This Row],[Por.]]=3,15,IF(Výsledky_MUŽI[[#This Row],[Por.]]=4,13,IF(Výsledky_MUŽI[[#This Row],[Por.]]=5,11,IF(Výsledky_MUŽI[[#This Row],[Por.]]=6,9,IF(Výsledky_MUŽI[[#This Row],[Por.]]=7,8,IF(Výsledky_MUŽI[[#This Row],[Por.]]=8,7,IF(Výsledky_MUŽI[[#This Row],[Por.]]=9,6,IF(Výsledky_MUŽI[[#This Row],[Por.]]=10,5,IF(Výsledky_MUŽI[[#This Row],[Por.]]=11,4,IF(Výsledky_MUŽI[[#This Row],[Por.]]=12,3,IF(Výsledky_MUŽI[[#This Row],[Výs. čas]]=99.99,1,IF(Výsledky_MUŽI[[#This Row],[Výs. čas]]=\"Diskv.\",1,IF(Výsledky_MUŽI[[#This Row],[Výs. čas]]=\"Neúčasť\",0,2)))))))))))))))","v":2},"x",null,null,null,null,"D        --- diskvalifikácia družstva"]
[{"$f":"IF(Výsledky_MUŽI[[#This Row],[Výs. čas]]=\"čas\",\"---\",IF(Výsledky_MUŽI[[#This Row],[Výs. čas]]=99.99,\"---\",IF(Výsledky_MUŽI[[#This Row],[Výs. čas]]=\"Diskv.\",\"---\",IF(Výsledky_MUŽI[[#This Row],[Výs. čas]]=\"Neúčasť\",\"---\",_xlfn.RANK.EQ(Výsledky_MUŽI[[#This Row],[Výs. čas]],Výsledky_MUŽI[Výs. čas],1)))))","v":14},"Hrabičov",null,17.36,17.45,17.45,{"$f":"IF(Výsledky_MUŽI[[#This Row],[Por.]]=1,20,IF(Výsledky_MUŽI[[#This Row],[Por.]]=2,17,IF(Výsledky_MUŽI[[#This Row],[Por.]]=3,15,IF(Výsledky_MUŽI[[#This Row],[Por.]]=4,13,IF(Výsledky_MUŽI[[#This Row],[Por.]]=5,11,IF(Výsledky_MUŽI[[#This Row],[Por.]]=6,9,IF(Výsledky_MUŽI[[#This Row],[Por.]]=7,8,IF(Výsledky_MUŽI[[#This Row],[Por.]]=8,7,IF(Výsledky_MUŽI[[#This Row],[Por.]]=9,6,IF(Výsledky_MUŽI[[#This Row],[Por.]]=10,5,IF(Výsledky_MUŽI[[#This Row],[Por.]]=11,4,IF(Výsledky_MUŽI[[#This Row],[Por.]]=12,3,IF(Výsledky_MUŽI[[#This Row],[Výs. čas]]=99.99,1,IF(Výsledky_MUŽI[[#This Row],[Výs. čas]]=\"Diskv.\",1,IF(Výsledky_MUŽI[[#This Row],[Výs. čas]]=\"Neúčasť\",0,2)))))))))))))))","v":2},"x",null,null,null,null,"N        --- neúčasť družstva"]
[{"$f":"IF(Výsledky_MUŽI[[#This Row],[Výs. čas]]=\"čas\",\"---\",IF(Výsledky_MUŽI[[#This Row],[Výs. čas]]=99.99,\"---\",IF(Výsledky_MUŽI[[#This Row],[Výs. čas]]=\"Diskv.\",\"---\",IF(Výsledky_MUŽI[[#This Row],[Výs. čas]]=\"Neúčasť\",\"---\",_xlfn.RANK.EQ(Výsledky_MUŽI[[#This Row],[Výs. čas]],Výsledky_MUŽI[Výs. čas],1)))))","v":15},"Smolina",null,16.97,17.48,17.48,{"$f":"IF(Výsledky_MUŽI[[#This Row],[Por.]]=1,20,IF(Výsledky_MUŽI[[#This Row],[Por.]]=2,17,IF(Výsledky_MUŽI[[#This Row],[Por.]]=3,15,IF(Výsledky_MUŽI[[#This Row],[Por.]]=4,13,IF(Výsledky_MUŽI[[#This Row],[Por.]]=5,11,IF(Výsledky_MUŽI[[#This Row],[Por.]]=6,9,IF(Výsledky_MUŽI[[#This Row],[Por.]]=7,8,IF(Výsledky_MUŽI[[#This Row],[Por.]]=8,7,IF(Výsledky_MUŽI[[#This Row],[Por.]]=9,6,IF(Výsledky_MUŽI[[#This Row],[Por.]]=10,5,IF(Výsledky_MUŽI[[#This Row],[Por.]]=11,4,IF(Výsledky_MUŽI[[#This Row],[Por.]]=12,3,IF(Výsledky_MUŽI[[#This Row],[Výs. čas]]=99.99,1,IF(Výsledky_MUŽI[[#This Row],[Výs. čas]]=\"Diskv.\",1,IF(Výsledky_MUŽI[[#This Row],[Výs. čas]]=\"Neúčasť\",0,2)))))))))))))))","v":2},null,null,null,null,null,"Prestup"]
[{"$f":"IF(Výsledky_MUŽI[[#This Row],[Výs. čas]]=\"čas\",\"---\",IF(Výsledky_MUŽI[[#This Row],[Výs. čas]]=99.99,\"---\",IF(Výsledky_MUŽI[[#This Row],[Výs. čas]]=\"Diskv.\",\"---\",IF(Výsledky_MUŽI[[#This Row],[Výs. čas]]=\"Neúčasť\",\"---\",_xlfn.RANK.EQ(Výsledky_MUŽI[[#This Row],[Výs. čas]],Výsledky_MUŽI[Výs. čas],1)))))","v":16},"Lužany",null,15,18.25,18.25,{"$f":"IF(Výsledky_MUŽI[[#This Row],[Por.]]=1,20,IF(Výsledky_MUŽI[[#This Row],[Por.]]=2,17,IF(Výsledky_MUŽI[[#This Row],[Por.]]=3,15,IF(Výsledky_MUŽI[[#This Row],[Por.]]=4,13,IF(Výsledky_MUŽI[[#This Row],[Por.]]=5,11,IF(Výsledky_MUŽI[[#This Row],[Por.]]=6,9,IF(Výsledky_MUŽI[[#This Row],[Por.]]=7,8,IF(Výsledky_MUŽI[[#This Row],[Por.]]=8,7,IF(Výsledky_MUŽI[[#This Row],[Por.]]=9,6,IF(Výsledky_MUŽI[[#This Row],[Por.]]=10,5,IF(Výsledky_MUŽI[[#This Row],[Por.]]=11,4,IF(Výsledky_MUŽI[[#This Row],[Por.]]=12,3,IF(Výsledky_MUŽI[[#This Row],[Výs. čas]]=99.99,1,IF(Výsledky_MUŽI[[#This Row],[Výs. čas]]=\"Diskv.\",1,IF(Výsledky_MUŽI[[#This Row],[Výs. čas]]=\"Neúčasť\",0,2)))))))))))))))","v":2},"x",null,null,null,null,"X        --- ak malo družstvo prestup"]
[{"$f":"IF(Výsledky_MUŽI[[#This Row],[Výs. čas]]=\"čas\",\"---\",IF(Výsledky_MUŽI[[#This Row],[Výs. čas]]=99.99,\"---\",IF(Výsledky_MUŽI[[#This Row],[Výs. čas]]=\"Diskv.\",\"---\",IF(Výsledky_MUŽI[[#This Row],[Výs. čas]]=\"Neúčasť\",\"---\",_xlfn.RANK.EQ(Výsledky_MUŽI[[#This Row],[Výs. čas]],Výsledky_MUŽI[Výs. čas],1)))))","v":17},"Podlužany",null,13.75,19.739999999999998,19.739999999999998,{"$f":"IF(Výsledky_MUŽI[[#This Row],[Por.]]=1,20,IF(Výsledky_MUŽI[[#This Row],[Por.]]=2,17,IF(Výsledky_MUŽI[[#This Row],[Por.]]=3,15,IF(Výsledky_MUŽI[[#This Row],[Por.]]=4,13,IF(Výsledky_MUŽI[[#This Row],[Por.]]=5,11,IF(Výsledky_MUŽI[[#This Row],[Por.]]=6,9,IF(Výsledky_MUŽI[[#This Row],[Por.]]=7,8,IF(Výsledky_MUŽI[[#This Row],[Por.]]=8,7,IF(Výsledky_MUŽI[[#This Row],[Por.]]=9,6,IF(Výsledky_MUŽI[[#This Row],[Por.]]=10,5,IF(Výsledky_MUŽI[[#This Row],[Por.]]=11,4,IF(Výsledky_MUŽI[[#This Row],[Por.]]=12,3,IF(Výsledky_MUŽI[[#This Row],[Výs. čas]]=99.99,1,IF(Výsledky_MUŽI[[#This Row],[Výs. čas]]=\"Diskv.\",1,IF(Výsledky_MUŽI[[#This Row],[Výs. čas]]=\"Neúčasť\",0,2)))))))))))))))","v":2}]
[{"$f":"IF(Výsledky_MUŽI[[#This Row],[Výs. čas]]=\"čas\",\"---\",IF(Výsledky_MUŽI[[#This Row],[Výs. čas]]=99.99,\"---\",IF(Výsledky_MUŽI[[#This Row],[Výs. čas]]=\"Diskv.\",\"---\",IF(Výsledky_MUŽI[[#This Row],[Výs. čas]]=\"Neúčasť\",\"---\",_xlfn.RANK.EQ(Výsledky_MUŽI[[#This Row],[Výs. čas]],Výsledky_MUŽI[Výs. čas],1)))))","v":18},"Chrabrany",null,20.100000000000001,21.05,21.05,{"$f":"IF(Výsledky_MUŽI[[#This Row],[Por.]]=1,20,IF(Výsledky_MUŽI[[#This Row],[Por.]]=2,17,IF(Výsledky_MUŽI[[#This Row],[Por.]]=3,15,IF(Výsledky_MUŽI[[#This Row],[Por.]]=4,13,IF(Výsledky_MUŽI[[#This Row],[Por.]]=5,11,IF(Výsledky_MUŽI[[#This Row],[Por.]]=6,9,IF(Výsledky_MUŽI[[#This Row],[Por.]]=7,8,IF(Výsledky_MUŽI[[#This Row],[Por.]]=8,7,IF(Výsledky_MUŽI[[#This Row],[Por.]]=9,6,IF(Výsledky_MUŽI[[#This Row],[Por.]]=10,5,IF(Výsledky_MUŽI[[#This Row],[Por.]]=11,4,IF(Výsledky_MUŽI[[#This Row],[Por.]]=12,3,IF(Výsledky_MUŽI[[#This Row],[Výs. čas]]=99.99,1,IF(Výsledky_MUŽI[[#This Row],[Výs. čas]]=\"Diskv.\",1,IF(Výsledky_MUŽI[[#This Row],[Výs. čas]]=\"Neúčasť\",0,2)))))))))))))))","v":2},"x",null,null,null,null,"TIP: Ak potrebujete do tabuľky pridať nový riadok, presuňte sa do stĺpca \"H\" posledného riadku a stačte klávesu TAB."]
[{"$f":"IF(Výsledky_MUŽI[[#This Row],[Výs. čas]]=\"čas\",\"---\",IF(Výsledky_MUŽI[[#This Row],[Výs. čas]]=99.99,\"---\",IF(Výsledky_MUŽI[[#This Row],[Výs. čas]]=\"Diskv.\",\"---\",IF(Výsledky_MUŽI[[#This Row],[Výs. čas]]=\"Neúčasť\",\"---\",_xlfn.RANK.EQ(Výsledky_MUŽI[[#This Row],[Výs. čas]],Výsledky_MUŽI[Výs. čas],1)))))","v":19},"Nova Dedina \"B\"",null,21.86,21.14,21.86,{"$f":"IF(Výsledky_MUŽI[[#This Row],[Por.]]=1,20,IF(Výsledky_MUŽI[[#This Row],[Por.]]=2,17,IF(Výsledky_MUŽI[[#This Row],[Por.]]=3,15,IF(Výsledky_MUŽI[[#This Row],[Por.]]=4,13,IF(Výsledky_MUŽI[[#This Row],[Por.]]=5,11,IF(Výsledky_MUŽI[[#This Row],[Por.]]=6,9,IF(Výsledky_MUŽI[[#This Row],[Por.]]=7,8,IF(Výsledky_MUŽI[[#This Row],[Por.]]=8,7,IF(Výsledky_MUŽI[[#This Row],[Por.]]=9,6,IF(Výsledky_MUŽI[[#This Row],[Por.]]=10,5,IF(Výsledky_MUŽI[[#This Row],[Por.]]=11,4,IF(Výsledky_MUŽI[[#This Row],[Por.]]=12,3,IF(Výsledky_MUŽI[[#This Row],[Výs. čas]]=99.99,1,IF(Výsledky_MUŽI[[#This Row],[Výs. čas]]=\"Diskv.\",1,IF(Výsledky_MUŽI[[#This Row],[Výs. čas]]=\"Neúčasť\",0,2)))))))))))))))","v":2},"x"]
[{"$f":"IF(Výsledky_MUŽI[[#This Row],[Výs. čas]]=\"čas\",\"---\",IF(Výsledky_MUŽI[[#This Row],[Výs. čas]]=99.99,\"---\",IF(Výsledky_MUŽI[[#This Row],[Výs. čas]]=\"Diskv.\",\"---\",IF(Výsledky_MUŽI[[#This Row],[Výs. čas]]=\"Neúčasť\",\"---\",_xlfn.RANK.EQ(Výsledky_MUŽI[[#This Row],[Výs. čas]],Výsledky_MUŽI[Výs. čas],1)))))","v":"---"},"Svinná",null,99.99,99.99,99.99,{"$f":"IF(Výsledky_MUŽI[[#This Row],[Por.]]=1,20,IF(Výsledky_MUŽI[[#This Row],[Por.]]=2,17,IF(Výsledky_MUŽI[[#This Row],[Por.]]=3,15,IF(Výsledky_MUŽI[[#This Row],[Por.]]=4,13,IF(Výsledky_MUŽI[[#This Row],[Por.]]=5,11,IF(Výsledky_MUŽI[[#This Row],[Por.]]=6,9,IF(Výsledky_MUŽI[[#This Row],[Por.]]=7,8,IF(Výsledky_MUŽI[[#This Row],[Por.]]=8,7,IF(Výsledky_MUŽI[[#This Row],[Por.]]=9,6,IF(Výsledky_MUŽI[[#This Row],[Por.]]=10,5,IF(Výsledky_MUŽI[[#This Row],[Por.]]=11,4,IF(Výsledky_MUŽI[[#This Row],[Por.]]=12,3,IF(Výsledky_MUŽI[[#This Row],[Výs. čas]]=99.99,1,IF(Výsledky_MUŽI[[#This Row],[Výs. čas]]=\"Diskv.\",1,IF(Výsledky_MUŽI[[#This Row],[Výs. čas]]=\"Neúčasť\",0,2)))))))))))))))","v":1}]
[{"$f":"IF(Výsledky_MUŽI[[#This Row],[Výs. čas]]=\"čas\",\"---\",IF(Výsledky_MUŽI[[#This Row],[Výs. čas]]=99.99,\"---\",IF(Výsledky_MUŽI[[#This Row],[Výs. čas]]=\"Diskv.\",\"---\",IF(Výsledky_MUŽI[[#This Row],[Výs. čas]]=\"Neúčasť\",\"---\",_xlfn.RANK.EQ(Výsledky_MUŽI[[#This Row],[Výs. čas]],Výsledky_MUŽI[Výs. čas],1)))))","v":19},null,null,null,null,21.86,{"$f":"IF(Výsledky_MUŽI[[#This Row],[Por.]]=1,20,IF(Výsledky_MUŽI[[#This Row],[Por.]]=2,17,IF(Výsledky_MUŽI[[#This Row],[Por.]]=3,15,IF(Výsledky_MUŽI[[#This Row],[Por.]]=4,13,IF(Výsledky_MUŽI[[#This Row],[Por.]]=5,11,IF(Výsledky_MUŽI[[#This Row],[Por.]]=6,9,IF(Výsledky_MUŽI[[#This Row],[Por.]]=7,8,IF(Výsledky_MUŽI[[#This Row],[Por.]]=8,7,IF(Výsledky_MUŽI[[#This Row],[Por.]]=9,6,IF(Výsledky_MUŽI[[#This Row],[Por.]]=10,5,IF(Výsledky_MUŽI[[#This Row],[Por.]]=11,4,IF(Výsledky_MUŽI[[#This Row],[Por.]]=12,3,IF(Výsledky_MUŽI[[#This Row],[Výs. čas]]=99.99,1,IF(Výsledky_MUŽI[[#This Row],[Výs. čas]]=\"Diskv.\",1,IF(Výsledky_MUŽI[[#This Row],[Výs. čas]]=\"Neúčasť\",0,2)))))))))))))))","v":2}]
[{"$f":"IF(Výsledky_MUŽI[[#This Row],[Výs. čas]]=\"čas\",\"---\",IF(Výsledky_MUŽI[[#This Row],[Výs. čas]]=99.99,\"---\",IF(Výsledky_MUŽI[[#This Row],[Výs. čas]]=\"Diskv.\",\"---\",IF(Výsledky_MUŽI[[#This Row],[Výs. čas]]=\"Neúčasť\",\"---\",_xlfn.RANK.EQ(Výsledky_MUŽI[[#This Row],[Výs. čas]],Výsledky_MUŽI[Výs. čas],1)))))","v":19},null,null,null,null,21.86,{"$f":"IF(Výsledky_MUŽI[[#This Row],[Por.]]=1,20,IF(Výsledky_MUŽI[[#This Row],[Por.]]=2,17,IF(Výsledky_MUŽI[[#This Row],[Por.]]=3,15,IF(Výsledky_MUŽI[[#This Row],[Por.]]=4,13,IF(Výsledky_MUŽI[[#This Row],[Por.]]=5,11,IF(Výsledky_MUŽI[[#This Row],[Por.]]=6,9,IF(Výsledky_MUŽI[[#This Row],[Por.]]=7,8,IF(Výsledky_MUŽI[[#This Row],[Por.]]=8,7,IF(Výsledky_MUŽI[[#This Row],[Por.]]=9,6,IF(Výsledky_MUŽI[[#This Row],[Por.]]=10,5,IF(Výsledky_MUŽI[[#This Row],[Por.]]=11,4,IF(Výsledky_MUŽI[[#This Row],[Por.]]=12,3,IF(Výsledky_MUŽI[[#This Row],[Výs. čas]]=99.99,1,IF(Výsledky_MUŽI[[#This Row],[Výs. čas]]=\"Diskv.\",1,IF(Výsledky_MUŽI[[#This Row],[Výs. čas]]=\"Neúčasť\",0,2)))))))))))))))","v":2}]
[{"$f":"IF(Výsledky_MUŽI[[#This Row],[Výs. čas]]=\"čas\",\"---\",IF(Výsledky_MUŽI[[#This Row],[Výs. čas]]=99.99,\"---\",IF(Výsledky_MUŽI[[#This Row],[Výs. čas]]=\"Diskv.\",\"---\",IF(Výsledky_MUŽI[[#This Row],[Výs. čas]]=\"Neúčasť\",\"---\",_xlfn.RANK.EQ(Výsledky_MUŽI[[#This Row],[Výs. čas]],Výsledky_MUŽI[Výs. čas],1)))))","v":19},null,null,null,null,21.86,{"$f":"IF(Výsledky_MUŽI[[#This Row],[Por.]]=1,20,IF(Výsledky_MUŽI[[#This Row],[Por.]]=2,17,IF(Výsledky_MUŽI[[#This Row],[Por.]]=3,15,IF(Výsledky_MUŽI[[#This Row],[Por.]]=4,13,IF(Výsledky_MUŽI[[#This Row],[Por.]]=5,11,IF(Výsledky_MUŽI[[#This Row],[Por.]]=6,9,IF(Výsledky_MUŽI[[#This Row],[Por.]]=7,8,IF(Výsledky_MUŽI[[#This Row],[Por.]]=8,7,IF(Výsledky_MUŽI[[#This Row],[Por.]]=9,6,IF(Výsledky_MUŽI[[#This Row],[Por.]]=10,5,IF(Výsledky_MUŽI[[#This Row],[Por.]]=11,4,IF(Výsledky_MUŽI[[#This Row],[Por.]]=12,3,IF(Výsledky_MUŽI[[#This Row],[Výs. čas]]=99.99,1,IF(Výsledky_MUŽI[[#This Row],[Výs. čas]]=\"Diskv.\",1,IF(Výsledky_MUŽI[[#This Row],[Výs. čas]]=\"Neúčasť\",0,2)))))))))))))))","v":2}]
[{"$f":"IF(Výsledky_MUŽI[[#This Row],[Výs. čas]]=\"čas\",\"---\",IF(Výsledky_MUŽI[[#This Row],[Výs. čas]]=99.99,\"---\",IF(Výsledky_MUŽI[[#This Row],[Výs. čas]]=\"Diskv.\",\"---\",IF(Výsledky_MUŽI[[#This Row],[Výs. čas]]=\"Neúčasť\",\"---\",_xlfn.RANK.EQ(Výsledky_MUŽI[[#This Row],[Výs. čas]],Výsledky_MUŽI[Výs. čas],1)))))","v":"---"},"Zbora",null,"D","D","Diskv.",{"$f":"IF(Výsledky_MUŽI[[#This Row],[Por.]]=1,20,IF(Výsledky_MUŽI[[#This Row],[Por.]]=2,17,IF(Výsledky_MUŽI[[#This Row],[Por.]]=3,15,IF(Výsledky_MUŽI[[#This Row],[Por.]]=4,13,IF(Výsledky_MUŽI[[#This Row],[Por.]]=5,11,IF(Výsledky_MUŽI[[#This Row],[Por.]]=6,9,IF(Výsledky_MUŽI[[#This Row],[Por.]]=7,8,IF(Výsledky_MUŽI[[#This Row],[Por.]]=8,7,IF(Výsledky_MUŽI[[#This Row],[Por.]]=9,6,IF(Výsledky_MUŽI[[#This Row],[Por.]]=10,5,IF(Výsledky_MUŽI[[#This Row],[Por.]]=11,4,IF(Výsledky_MUŽI[[#This Row],[Por.]]=12,3,IF(Výsledky_MUŽI[[#This Row],[Výs. čas]]=99.99,1,IF(Výsledky_MUŽI[[#This Row],[Výs. čas]]=\"Diskv.\",1,IF(Výsledky_MUŽI[[#This Row],[Výs. čas]]=\"Neúčasť\",0,2)))))))))))))))","v":1}]
[{"$f":"IF(Výsledky_MUŽI[[#This Row],[Výs. čas]]=\"čas\",\"---\",IF(Výsledky_MUŽI[[#This Row],[Výs. čas]]=99.99,\"---\",IF(Výsledky_MUŽI[[#This Row],[Výs. čas]]=\"Diskv.\",\"---\",IF(Výsledky_MUŽI[[#This Row],[Výs. čas]]=\"Neúčasť\",\"---\",_xlfn.RANK.EQ(Výsledky_MUŽI[[#This Row],[Výs. čas]],Výsledky_MUŽI[Výs. čas],1)))))","v":"---"},"Poruba",null,"D","D","Diskv.",{"$f":"IF(Výsledky_MUŽI[[#This Row],[Por.]]=1,20,IF(Výsledky_MUŽI[[#This Row],[Por.]]=2,17,IF(Výsledky_MUŽI[[#This Row],[Por.]]=3,15,IF(Výsledky_MUŽI[[#This Row],[Por.]]=4,13,IF(Výsledky_MUŽI[[#This Row],[Por.]]=5,11,IF(Výsledky_MUŽI[[#This Row],[Por.]]=6,9,IF(Výsledky_MUŽI[[#This Row],[Por.]]=7,8,IF(Výsledky_MUŽI[[#This Row],[Por.]]=8,7,IF(Výsledky_MUŽI[[#This Row],[Por.]]=9,6,IF(Výsledky_MUŽI[[#This Row],[Por.]]=10,5,IF(Výsledky_MUŽI[[#This Row],[Por.]]=11,4,IF(Výsledky_MUŽI[[#This Row],[Por.]]=12,3,IF(Výsledky_MUŽI[[#This Row],[Výs. čas]]=99.99,1,IF(Výsledky_MUŽI[[#This Row],[Výs. čas]]=\"Diskv.\",1,IF(Výsledky_MUŽI[[#This Row],[Výs. čas]]=\"Neúčasť\",0,2)))))))))))))))","v":1}]
[null,null,null,null,null,null,"Prestupov:",{"$f":"COUNTIF(Výsledky_MUŽI[Prestup],\"X\")","v":8}]

{"sheet":"Výsledky ŽENY","index":2,"n_rows":22,"n_cols":13,"rows_kept":22,"cut":false,"hidden":false,"merged":[[0,0,0,7],[0,12,1,12],[1,0,1,7],[21,12,22,12]]}
[{"$f":"'Vstupné údaje'!$B$4","v":"Memoriál baróna Friesenhofa"},null,null,null,null,null,null,null,null,null,null,null,"Návod na plnohodnotnú prácu s výsledkami"]
[{"$f":"CONCATENATE(\"Výsledky \",'Vstupné údaje'!$B$7,\". kola SMHL \",TEXT('Vstupné údaje'!$B$5,\"yyyy\"),\" v kategórii ŽENY, ktoré sa konalo \",TEXT('Vstupné údaje'!$B$5,\"dd.mm.yyyy\"),\" o \",TEXT('Vstupné údaje'!$B$6,\"hh:mm\"))","v":"Výsledky 1. kola SMHL 2026 v kategórii ŽENY, ktoré sa konalo 06.06.2026 o 14:00"}]
[]
["Por.","Družstvo","Okres","ĽP","PP","Výs. čas","Body","Prestup",null,null,null,null,"Pri zadávaní výsledkov sa vypĺňajú nasledujúce stĺpce (zvyšné sa vypočítajú automaticky):"]
[{"$f":"IF(Výsledky_ŽENY[[#This Row],[Výs. čas]]=\"čas\",\"---\",IF(Výsledky_ŽENY[[#This Row],[Výs. čas]]=99.99,\"---\",IF(Výsledky_ŽENY[[#This Row],[Výs. čas]]=\"Diskv.\",\"---\",IF(Výsledky_ŽENY[[#This Row],[Výs. čas]]=\"Neúčasť\",\"---\",_xlfn.RANK.EQ(Výsledky_ŽENY[[#This Row],[Výs. čas]],Výsledky_ŽENY[Výs. čas],1)))))","v":1},"Kocurany",null,17.64,18.079999999999998,18.079999999999998,{"$f":"IF(Výsledky_ŽENY[[#This Row],[Por.]]=1,10,IF(Výsledky_ŽENY[[#This Row],[Por.]]=2,8,IF(Výsledky_ŽENY[[#This Row],[Por.]]=3,6,IF(Výsledky_ŽENY[[#This Row],[Por.]]=4,4,IF(Výsledky_ŽENY[[#This Row],[Por.]]=5,2,IF(Výsledky_ŽENY[[#This Row],[Výs. čas]]=99.99,1,IF(Výsledky_ŽENY[[#This Row],[Výs. čas]]=\"Diskv.\",1,IF(Výsledky_ŽENY[[#This Row],[Výs. čas]]=\"Neúčasť\",0,2))))))))","v":10},"x",null,null,null,null,"--- družstvo"]
[{"$f":"IF(Výsledky_ŽENY[[#This Row],[Výs. čas]]=\"čas\",\"---\",IF(Výsledky_ŽENY[[#This Row],[Výs. čas]]=99.99,\"---\",IF(Výsledky_ŽENY[[#This Row],[Výs. čas]]=\"Diskv.\",\"---\",IF(Výsledky_ŽENY[[#This Row],[Výs. čas]]=\"Neúčasť\",\"---\",_xlfn.RANK.EQ(Výsledky_ŽENY[[#This Row],[Výs. čas]],Výsledky_ŽENY[Výs. čas],1)))))","v":2},"Krásno",null,17.96,18.23,18.23,{"$f":"IF(Výsledky_ŽENY[[#This Row],[Por.]]=1,10,IF(Výsledky_ŽENY[[#This Row],[Por.]]=2,8,IF(Výsledky_ŽENY[[#This Row],[Por.]]=3,6,IF(Výsledky_ŽENY[[#This Row],[Por.]]=4,4,IF(Výsledky_ŽENY[[#This Row],[Por.]]=5,2,IF(Výsledky_ŽENY[[#This Row],[Výs. čas]]=99.99,1,IF(Výsledky_ŽENY[[#This Row],[Výs. čas]]=\"Diskv.\",1,IF(Výsledky_ŽENY[[#This Row],[Výs. čas]]=\"Neúčasť\",0,2))))))))","v":8},null,null,null,null,null,"--- okres"]
[{"$f":"IF(Výsledky_ŽENY[[#This Row],[Výs. čas]]=\"čas\",\"---\",IF(Výsledky_ŽENY[[#This Row],[Výs. čas]]=99.99,\"---\",IF(Výsledky_ŽENY[[#This Row],[Výs. čas]]=\"Diskv.\",\"---\",IF(Výsledky_ŽENY[[#This Row],[Výs. čas]]=\"Neúčasť\",\"---\",_xlfn.RANK.EQ(Výsledky_ŽENY[[#This Row],[Výs. čas]],Výsledky_ŽENY[Výs. čas],1)))))","v":3},"Horná Ves",null,19.21,18.059999999999999,19.21,{"$f":"IF(Výsledky_ŽENY[[#This Row],[Por.]]=1,10,IF(Výsledky_ŽENY[[#This Row],[Por.]]=2,8,IF(Výsledky_ŽENY[[#This Row],[Por.]]=3,6,IF(Výsledky_ŽENY[[#This Row],[Por.]]=4,4,IF(Výsledky_ŽENY[[#This Row],[Por.]]=5,2,IF(Výsledky_ŽENY[[#This Row],[Výs. čas]]=99.99,1,IF(Výsledky_ŽENY[[#This Row],[Výs. čas]]=\"Diskv.\",1,IF(Výsledky_ŽENY[[#This Row],[Výs. čas]]=\"Neúčasť\",0,2))))))))","v":6},null,null,null,null,null,"--- ľavý prúd (ĽP)"]
[{"$f":"IF(Výsledky_ŽENY[[#This Row],[Výs. čas]]=\"čas\",\"---\",IF(Výsledky_ŽENY[[#This Row],[Výs. čas]]=99.99,\"---\",IF(Výsledky_ŽENY[[#This Row],[Výs. čas]]=\"Diskv.\",\"---\",IF(Výsledky_ŽENY[[#This Row],[Výs. čas]]=\"Neúčasť\",\"---\",_xlfn.RANK.EQ(Výsledky_ŽENY[[#This Row],[Výs. čas]],Výsledky_ŽENY[Výs. čas],1)))))","v":4},"Lednické Rovne",null,19.29,18.989999999999998,19.29,{"$f":"IF(Výsledky_ŽENY[[#This Row],[Por.]]=1,10,IF(Výsledky_ŽENY[[#This Row],[Por.]]=2,8,IF(Výsledky_ŽENY[[#This Row],[Por.]]=3,6,IF(Výsledky_ŽENY[[#This Row],[Por.]]=4,4,IF(Výsledky_ŽENY[[#This Row],[Por.]]=5,2,IF(Výsledky_ŽENY[[#This Row],[Výs. čas]]=99.99,1,IF(Výsledky_ŽENY[[#This Row],[Výs. čas]]=\"Diskv.\",1,IF(Výsledky_ŽENY[[#This Row],[Výs. čas]]=\"Neúčasť\",0,2))))))))","v":4},null,null,null,null,null,"--- pravý prúd (PP)"]
[{"$f":"IF(Výsledky_ŽENY[[#This Row],[Výs. čas]]=\"čas\",\"---\",IF(Výsledky_ŽENY[[#This Row],[Výs. čas]]=99.99,\"---\",IF(Výsledky_ŽENY[[#This Row],[Výs. čas]]=\"Diskv.\",\"---\",IF(Výsledky_ŽENY[[#This Row],[Výs. čas]]=\"Neúčasť\",\"---\",_xlfn.RANK.EQ(Výsledky_ŽENY[[#This Row],[Výs. čas]],Výsledky_ŽENY[Výs. čas],1)))))","v":5},"Visolaje",null,18.940000000000001,19.350000000000001,19.350000000000001,{"$f":"IF(Výsledky_ŽENY[[#This Row],[Por.]]=1,10,IF(Výsledky_ŽENY[[#This Row],[Por.]]=2,8,IF(Výsledky_ŽENY[[#This Row],[Por.]]=3,6,IF(Výsledky_ŽENY[[#This Row],[Por.]]=4,4,IF(Výsledky_ŽENY[[#This Row],[Por.]]=5,2,IF(Výsledky_ŽENY[[#This Row],[Výs. čas]]=99.99,1,IF(Výsledky_ŽENY[[#This Row],[Výs. čas]]=\"Diskv.\",1,IF(Výsledky_ŽENY[[#This Row],[Výs. čas]]=\"Neúčasť\",0,2))))))))","v":2},"x",null,null,null,null,"--- prestup"]
[{"$f":"IF(Výsledky_ŽENY[[#This Row],[Výs. čas]]=\"čas\",\"---\",IF(Výsledky_ŽENY[[#This Row],[Výs. čas]]=99.99,\"---\",IF(Výsledky_ŽENY[[#This Row],[Výs. čas]]=\"Diskv.\",\"---\",IF(Výsledky_ŽENY[[#This Row],[Výs. čas]]=\"Neúčasť\",\"---\",_xlfn.RANK.EQ(Výsledky_ŽENY[[#This Row],[Výs. čas]],Výsledky_ŽENY[Výs. čas],1)))))","v":6},"Pruské",null,19.48,19.329999999999998,19.48,{"$f":"IF(Výsledky_ŽENY[[#This Row],[Por.]]=1,10,IF(Výsledky_ŽENY[[#This Row],[Por.]]=2,8,IF(Výsledky_ŽENY[[#This Row],[Por.]]=3,6,IF(Výsledky_ŽENY[[#This Row],[Por.]]=4,4,IF(Výsledky_ŽENY[[#This Row],[Por.]]=5,2,IF(Výsledky_ŽENY[[#This Row],[Výs. čas]]=99.99,1,IF(Výsledky_ŽENY[[#This Row],[Výs. čas]]=\"Diskv.\",1,IF(Výsledky_ŽENY[[#This Row],[Výs. čas]]=\"Neúčasť\",0,2))))))))","v":2},"x"]
[{"$f":"IF(Výsledky_ŽENY[[#This Row],[Výs. čas]]=\"čas\",\"---\",IF(Výsledky_ŽENY[[#This Row],[Výs. čas]]=99.99,\"---\",IF(Výsledky_ŽENY[[#This Row],[Výs. čas]]=\"Diskv.\",\"---\",IF(Výsledky_ŽENY[[#This Row],[Výs. čas]]=\"Neúčasť\",\"---\",_xlfn.RANK.EQ(Výsledky_ŽENY[[#This Row],[Výs. čas]],Výsledky_ŽENY[Výs. čas],1)))))","v":7},"Topoľčianky",null,20.05,18.440000000000001,20.05,{"$f":"IF(Výsledky_ŽENY[[#This Row],[Por.]]=1,10,IF(Výsledky_ŽENY[[#This Row],[Por.]]=2,8,IF(Výsledky_ŽENY[[#This Row],[Por.]]=3,6,IF(Výsledky_ŽENY[[#This Row],[Por.]]=4,4,IF(Výsledky_ŽENY[[#This Row],[Por.]]=5,2,IF(Výsledky_ŽENY[[#This Row],[Výs. čas]]=99.99,1,IF(Výsledky_ŽENY[[#This Row],[Výs. čas]]=\"Diskv.\",1,IF(Výsledky_ŽENY[[#This Row],[Výs. čas]]=\"Neúčasť\",0,2))))))))","v":2},null,null,null,null,null,"Dovolený formát zadávaných údajov:"]
[{"$f":"IF(Výsledky_ŽENY[[#This Row],[Výs. čas]]=\"čas\",\"---\",IF(Výsledky_ŽENY[[#This Row],[Výs. čas]]=99.99,\"---\",IF(Výsledky_ŽENY[[#This Row],[Výs. čas]]=\"Diskv.\",\"---\",IF(Výsledky_ŽENY[[#This Row],[Výs. čas]]=\"Neúčasť\",\"---\",_xlfn.RANK.EQ(Výsledky_ŽENY[[#This Row],[Výs. čas]],Výsledky_ŽENY[Výs. čas],1)))))","v":8},"Nosice Žabky \"B\"",null,20.46,19.47,20.46,{"$f":"IF(Výsledky_ŽENY[[#This Row],[Por.]]=1,10,IF(Výsledky_ŽENY[[#This Row],[Por.]]=2,8,IF(Výsledky_ŽENY[[#This Row],[Por.]]=3,6,IF(Výsledky_ŽENY[[#This Row],[Por.]]=4,4,IF(Výsledky_ŽENY[[#This Row],[Por.]]=5,2,IF(Výsledky_ŽENY[[#This Row],[Výs. čas]]=99.99,1,IF(Výsledky_ŽENY[[#This Row],[Výs. čas]]=\"Diskv.\",1,IF(Výsledky_ŽENY[[#This Row],[Výs. čas]]=\"Neúčasť\",0,2))))))))","v":2},"x",null,null,null,null,"Družstvo, okres"]
[{"$f":"IF(Výsledky_ŽENY[[#This Row],[Výs. čas]]=\"čas\",\"---\",IF(Výsledky_ŽENY[[#This Row],[Výs. čas]]=99.99,\"---\",IF(Výsledky_ŽENY[[#This Row],[Výs. čas]]=\"Diskv.\",\"---\",IF(Výsledky_ŽENY[[#This Row],[Výs. čas]]=\"Neúčasť\",\"---\",_xlfn.RANK.EQ(Výsledky_ŽENY[[#This Row],[Výs. čas]],Výsledky_ŽENY[Výs. čas],1)))))","v":9},"Chrabrany",null,20.87,20.56,20.87,{"$f":"IF(Výsledky_ŽENY[[#This Row],[Por.]]=1,10,IF(Výsledky_ŽENY[[#This Row],[Por.]]=2,8,IF(Výsledky_ŽENY[[#This Row],[Por.]]=3,6,IF(Výsledky_ŽENY[[#This Row],[Por.]]=4,4,IF(Výsledky_ŽENY[[#This Row],[Por.]]=5,2,IF(Výsledky_ŽENY[[#This Row],[Výs. čas]]=99.99,1,IF(Výsledky_ŽENY[[#This Row],[Výs. čas]]=\"Diskv.\",1,IF(Výsledky_ŽENY[[#This Row],[Výs. čas]]=\"Neúčasť\",0,2))))))))","v":2},"x",null,null,null,null,"--- ľubovoľný text"]
[{"$f":"IF(Výsledky_ŽENY[[#This Row],[Výs. čas]]=\"čas\",\"---\",IF(Výsledky_ŽENY[[#This Row],[Výs. čas]]=99.99,\"---\",IF(Výsledky_ŽENY[[#This Row],[Výs. čas]]=\"Diskv.\",\"---\",IF(Výsledky_ŽENY[[#This Row],[Výs. čas]]=\"Neúčasť\",\"---\",_xlfn.RANK.EQ(Výsledky_ŽENY[[#This Row],[Výs. čas]],Výsledky_ŽENY[Výs. čas],1)))))","v":10},"Mostište",null,22.23,21.79,22.23,{"$f":"IF(Výsledky_ŽENY[[#This Row],[Por.]]=1,10,IF(Výsledky_ŽENY[[#This Row],[Por.]]=2,8,IF(Výsledky_ŽENY[[#This Row],[Por.]]=3,6,IF(Výsledky_ŽENY[[#This Row],[Por.]]=4,4,IF(Výsledky_ŽENY[[#This Row],[Por.]]=5,2,IF(Výsledky_ŽENY[[#This Row],[Výs. čas]]=99.99,1,IF(Výsledky_ŽENY[[#This Row],[Výs. čas]]=\"Diskv.\",1,IF(Výsledky_ŽENY[[#This Row],[Výs. čas]]=\"Neúčasť\",0,2))))))))","v":2},null,null,null,null,null,"Ľavý/pravý prúd"]
[{"$f":"IF(Výsledky_ŽENY[[#This Row],[Výs. čas]]=\"čas\",\"---\",IF(Výsledky_ŽENY[[#This Row],[Výs. čas]]=99.99,\"---\",IF(Výsledky_ŽENY[[#This Row],[Výs. čas]]=\"Diskv.\",\"---\",IF(Výsledky_ŽENY[[#This Row],[Výs. čas]]=\"Neúčasť\",\"---\",_xlfn.RANK.EQ(Výsledky_ŽENY[[#This Row],[Výs. čas]],Výsledky_ŽENY[Výs. čas],1)))))","v":11},"Nedašova Lhota",null,21.5,23.57,23.57,{"$f":"IF(Výsledky_ŽENY[[#This Row],[Por.]]=1,10,IF(Výsledky_ŽENY[[#This Row],[Por.]]=2,8,IF(Výsledky_ŽENY[[#This Row],[Por.]]=3,6,IF(Výsledky_ŽENY[[#This Row],[Por.]]=4,4,IF(Výsledky_ŽENY[[#This Row],[Por.]]=5,2,IF(Výsledky_ŽENY[[#This Row],[Výs. čas]]=99.99,1,IF(Výsledky_ŽENY[[#This Row],[Výs. čas]]=\"Diskv.\",1,IF(Výsledky_ŽENY[[#This Row],[Výs. čas]]=\"Neúčasť\",0,2))))))))","v":2},null,null,null,null,null,"14.00 --- dokončený pokus"]
[{"$f":"IF(Výsledky_ŽENY[[#This Row],[Výs. čas]]=\"čas\",\"---\",IF(Výsledky_ŽENY[[#This Row],[Výs. čas]]=99.99,\"---\",IF(Výsledky_ŽENY[[#This Row],[Výs. čas]]=\"Diskv.\",\"---\",IF(Výsledky_ŽENY[[#This Row],[Výs. čas]]=\"Neúčasť\",\"---\",_xlfn.RANK.EQ(Výsledky_ŽENY[[#This Row],[Výs. čas]],Výsledky_ŽENY[Výs. čas],1)))))","v":12},"Dulov \"B\"",null,32.29,24.81,32.29,{"$f":"IF(Výsledky_ŽENY[[#This Row],[Por.]]=1,10,IF(Výsledky_ŽENY[[#This Row],[Por.]]=2,8,IF(Výsledky_ŽENY[[#This Row],[Por.]]=3,6,IF(Výsledky_ŽENY[[#This Row],[Por.]]=4,4,IF(Výsledky_ŽENY[[#This Row],[Por.]]=5,2,IF(Výsledky_ŽENY[[#This Row],[Výs. čas]]=99.99,1,IF(Výsledky_ŽENY[[#This Row],[Výs. čas]]=\"Diskv.\",1,IF(Výsledky_ŽENY[[#This Row],[Výs. čas]]=\"Neúčasť\",0,2))))))))","v":2},null,null,null,null,null,"99.99 --- nedokončený pokus"]
[{"$f":"IF(Výsledky_ŽENY[[#This Row],[Výs. čas]]=\"čas\",\"---\",IF(Výsledky_ŽENY[[#This Row],[Výs. čas]]=99.99,\"---\",IF(Výsledky_ŽENY[[#This Row],[Výs. čas]]=\"Diskv.\",\"---\",IF(Výsledky_ŽENY[[#This Row],[Výs. čas]]=\"Neúčasť\",\"---\",_xlfn.RANK.EQ(Výsledky_ŽENY[[#This Row],[Výs. čas]],Výsledky_ŽENY[Výs. čas],1)))))","v":"---"},null,null,null,null,{"$f":"IF(AND(ISBLANK(Výsledky_ŽENY[[#This Row],[PP]])),\"čas\",IF(Výsledky_ŽENY[[#This Row],[ĽP]]=\"D\",\"Diskv.\",IF(Výsledky_ŽENY[[#This Row],[PP]]=\"D\",\"Diskv.\",IF(Výsledky_ŽENY[[#This Row],[ĽP]]=\"n\",\"Neúčasť\",IF(Výsledky_ŽENY[[#This Row],[PP]]=\"n\",\"Neúčasť\",MAX(SUBSTITUTE(Výsledky_ŽENY[[#This Row],[ĽP]],\",\",\".\"),SUBSTITUTE(Výsledky_ŽENY[[#This Row],[PP]],\",\",\".\")))))))","v":"čas"},{"$f":"IF(Výsledky_ŽENY[[#This Row],[Por.]]=1,10,IF(Výsledky_ŽENY[[#This Row],[Por.]]=2,8,IF(Výsledky_ŽENY[[#This Row],[Por.]]=3,6,IF(Výsledky_ŽENY[[#This Row],[Por.]]=4,4,IF(Výsledky_ŽENY[[#This Row],[Por.]]=5,2,IF(Výsledky_ŽENY[[#This Row],[Výs. čas]]=99.99,1,IF(Výsledky_ŽENY[[#This Row],[Výs. čas]]=\"Diskv.\",1,IF(Výsledky_ŽENY[[#This Row],[Výs. čas]]=\"Neúčasť\",0,2))))))))","v":2},null,null,null,null,null,"D        --- diskvalifikácia družstva"]
[{"$f":"IF(Výsledky_ŽENY[[#This Row],[Výs. čas]]=\"čas\",\"---\",IF(Výsledky_ŽENY[[#This Row],[Výs. čas]]=99.99,\"---\",IF(Výsledky_ŽENY[[#This Row],[Výs. čas]]=\"Diskv.\",\"---\",IF(Výsledky_ŽENY[[#This Row],[Výs. čas]]=\"Neúčasť\",\"---\",_xlfn.RANK.EQ(Výsledky_ŽENY[[#This Row],[Výs. čas]],Výsledky_ŽENY[Výs. čas],1)))))","v":"---"},"Poruba",null,"D","D",{"$f":"IF(AND(ISBLANK(Výsledky_ŽENY[[#This Row],[PP]])),\"čas\",IF(Výsledky_ŽENY[[#This Row],[ĽP]]=\"D\",\"Diskv.\",IF(Výsledky_ŽENY[[#This Row],[PP]]=\"D\",\"Diskv.\",IF(Výsledky_ŽENY[[#This Row],[ĽP]]=\"n\",\"Neúčasť\",IF(Výsledky_ŽENY[[#This Row],[PP]]=\"n\",\"Neúčasť\",MAX(SUBSTITUTE(Výsledky_ŽENY[[#This Row],[ĽP]],\",\",\".\"),SUBSTITUTE(Výsledky_ŽENY[[#This Row],[PP]],\",\",\".\")))))))","v":"Diskv."},{"$f":"IF(Výsledky_ŽENY[[#This Row],[Por.]]=1,10,IF(Výsledky_ŽENY[[#This Row],[Por.]]=2,8,IF(Výsledky_ŽENY[[#This Row],[Por.]]=3,6,IF(Výsledky_ŽENY[[#This Row],[Por.]]=4,4,IF(Výsledky_ŽENY[[#This Row],[Por.]]=5,2,IF(Výsledky_ŽENY[[#This Row],[Výs. čas]]=99.99,1,IF(Výsledky_ŽENY[[#This Row],[Výs. čas]]=\"Diskv.\",1,IF(Výsledky_ŽENY[[#This Row],[Výs. čas]]=\"Neúčasť\",0,2))))))))","v":1},"x",null,null,null,null,"N        --- neúčasť družstva"]
[{"$f":"IF(Výsledky_ŽENY[[#This Row],[Výs. čas]]=\"čas\",\"---\",IF(Výsledky_ŽENY[[#This Row],[Výs. čas]]=99.99,\"---\",IF(Výsledky_ŽENY[[#This Row],[Výs. čas]]=\"Diskv.\",\"---\",IF(Výsledky_ŽENY[[#This Row],[Výs. čas]]=\"Neúčasť\",\"---\",_xlfn.RANK.EQ(Výsledky_ŽENY[[#This Row],[Výs. čas]],Výsledky_ŽENY[Výs. čas],1)))))","v":{"$error":"#N/A"}},null,null,null,null,null,{"$f":"IF(Výsledky_ŽENY[[#This Row],[Por.]]=1,10,IF(Výsledky_ŽENY[[#This Row],[Por.]]=2,8,IF(Výsledky_ŽENY[[#This Row],[Por.]]=3,6,IF(Výsledky_ŽENY[[#This Row],[Por.]]=4,4,IF(Výsledky_ŽENY[[#This Row],[Por.]]=5,2,IF(Výsledky_ŽENY[[#This Row],[Výs. čas]]=99.99,1,IF(Výsledky_ŽENY[[#This Row],[Výs. čas]]=\"Diskv.\",1,IF(Výsledky_ŽENY[[#This Row],[Výs. čas]]=\"Neúčasť\",0,2))))))))","v":{"$error":"#N/A"}},null,null,null,null,null,"Prestup"]
[null,null,null,null,null,null,"Prestupov:",{"$f":"COUNTIF(Výsledky_ŽENY[Prestup],\"X\")","v":6},null,null,null,null,"X        --- ak malo družstvo prestup"]
[]
[null,null,null,null,null,null,null,null,null,null,null,null,"TIP: Ak potrebujete do tabuľky pridať nový riadok, presuňte sa do stĺpca \"H\" posledného riadku a stačte klávesu TAB."]

{"sheet":"Výsledky MUŽI nad 35 rokov","index":3,"n_rows":22,"n_cols":13,"rows_kept":22,"cut":false,"hidden":false,"merged":[[0,0,0,7],[0,12,1,12],[1,0,1,7],[21,12,22,12]]}
[{"$f":"'Vstupné údaje'!$B$4","v":"Memoriál baróna Friesenhofa"},null,null,null,null,null,null,null,null,null,null,null,"Návod na plnohodnotnú prácu s výsledkami"]
[{"$f":"CONCATENATE(\"Výsledky \",'Vstupné údaje'!$B$7,\". kola SMHL \",TEXT('Vstupné údaje'!$B$5,\"yyyy\"),\" v kategórii MUŽI nad 35 rokov, ktoré sa konalo \",TEXT('Vstupné údaje'!$B$5,\"dd.mm.yyyy\"),\" o \",TEXT('Vstupné údaje'!$B$6,\"hh:mm\"))","v":"Výsledky 1. kola SMHL 2026 v kategórii MUŽI nad 35 rokov, ktoré sa konalo 06.06.2026 o 14:00"}]
[]
["Por.","Družstvo","Okres","ĽP","PP","Výs. čas","Body","Prestup",null,null,null,null,"Pri zadávaní výsledkov sa vypĺňajú nasledujúce stĺpce (zvyšné sa vypočítajú automaticky):"]
[{"$f":"IF(Výsledky_ŽENY9[[#This Row],[Výs. čas]]=\"čas\",\"---\",IF(Výsledky_ŽENY9[[#This Row],[Výs. čas]]=99.99,\"---\",IF(Výsledky_ŽENY9[[#This Row],[Výs. čas]]=\"Diskv.\",\"---\",IF(Výsledky_ŽENY9[[#This Row],[Výs. čas]]=\"Neúčasť\",\"---\",_xlfn.RANK.EQ(Výsledky_ŽENY9[[#This Row],[Výs. čas]],Výsledky_ŽENY9[Výs. čas],1)))))","v":1},"Lehota pod Vtáčnikom",null,16.5,15.49,16.5,{"$f":"IF(Výsledky_ŽENY9[[#This Row],[Por.]]=1,10,IF(Výsledky_ŽENY9[[#This Row],[Por.]]=2,8,IF(Výsledky_ŽENY9[[#This Row],[Por.]]=3,6,IF(Výsledky_ŽENY9[[#This Row],[Por.]]=4,4,IF(Výsledky_ŽENY9[[#This Row],[Por.]]=5,2,IF(Výsledky_ŽENY9[[#This Row],[Výs. čas]]=99.99,1,IF(Výsledky_ŽENY9[[#This Row],[Výs. čas]]=\"Diskv.\",1,IF(Výsledky_ŽENY9[[#This Row],[Výs. čas]]=\"Neúčasť\",0,2))))))))","v":10},"x",null,null,null,null,"--- družstvo"]
[{"$f":"IF(Výsledky_ŽENY9[[#This Row],[Výs. čas]]=\"čas\",\"---\",IF(Výsledky_ŽENY9[[#This Row],[Výs. čas]]=99.99,\"---\",IF(Výsledky_ŽENY9[[#This Row],[Výs. čas]]=\"Diskv.\",\"---\",IF(Výsledky_ŽENY9[[#This Row],[Výs. čas]]=\"Neúčasť\",\"---\",_xlfn.RANK.EQ(Výsledky_ŽENY9[[#This Row],[Výs. čas]],Výsledky_ŽENY9[Výs. čas],1)))))","v":2},"Podlužany",null,16.79,16.239999999999998,16.79,{"$f":"IF(Výsledky_ŽENY9[[#This Row],[Por.]]=1,10,IF(Výsledky_ŽENY9[[#This Row],[Por.]]=2,8,IF(Výsledky_ŽENY9[[#This Row],[Por.]]=3,6,IF(Výsledky_ŽENY9[[#This Row],[Por.]]=4,4,IF(Výsledky_ŽENY9[[#This Row],[Por.]]=5,2,IF(Výsledky_ŽENY9[[#This Row],[Výs. čas]]=99.99,1,IF(Výsledky_ŽENY9[[#This Row],[Výs. čas]]=\"Diskv.\",1,IF(Výsledky_ŽENY9[[#This Row],[Výs. čas]]=\"Neúčasť\",0,2))))))))","v":8},"x",null,null,null,null,"--- okres"]
[{"$f":"IF(Výsledky_ŽENY9[[#This Row],[Výs. čas]]=\"čas\",\"---\",IF(Výsledky_ŽENY9[[#This Row],[Výs. čas]]=99.99,\"---\",IF(Výsledky_ŽENY9[[#This Row],[Výs. čas]]=\"Diskv.\",\"---\",IF(Výsledky_ŽENY9[[#This Row],[Výs. čas]]=\"Neúčasť\",\"---\",_xlfn.RANK.EQ(Výsledky_ŽENY9[[#This Row],[Výs. čas]],Výsledky_ŽENY9[Výs. čas],1)))))","v":3},"Nosice",null,17.05,16.98,17.05,{"$f":"IF(Výsledky_ŽENY9[[#This Row],[Por.]]=1,10,IF(Výsledky_ŽENY9[[#This Row],[Por.]]=2,8,IF(Výsledky_ŽENY9[[#This Row],[Por.]]=3,6,IF(Výsledky_ŽENY9[[#This Row],[Por.]]=4,4,IF(Výsledky_ŽENY9[[#This Row],[Por.]]=5,2,IF(Výsledky_ŽENY9[[#This Row],[Výs. čas]]=99.99,1,IF(Výsledky_ŽENY9[[#This Row],[Výs. čas]]=\"Diskv.\",1,IF(Výsledky_ŽENY9[[#This Row],[Výs. čas]]=\"Neúčasť\",0,2))))))))","v":6},"x",null,null,null,null,"--- ľavý prúd (ĽP)"]
[{"$f":"IF(Výsledky_ŽENY9[[#This Row],[Výs. čas]]=\"čas\",\"---\",IF(Výsledky_ŽENY9[[#This Row],[Výs. čas]]=99.99,\"---\",IF(Výsledky_ŽENY9[[#This Row],[Výs. čas]]=\"Diskv.\",\"---\",IF(Výsledky_ŽENY9[[#This Row],[Výs. čas]]=\"Neúčasť\",\"---\",_xlfn.RANK.EQ(Výsledky_ŽENY9[[#This Row],[Výs. čas]],Výsledky_ŽENY9[Výs. čas],1)))))","v":4},"Lednické Rovne",null,17.190000000000001,15.62,17.190000000000001,{"$f":"IF(Výsledky_ŽENY9[[#This Row],[Por.]]=1,10,IF(Výsledky_ŽENY9[[#This Row],[Por.]]=2,8,IF(Výsledky_ŽENY9[[#This Row],[Por.]]=3,6,IF(Výsledky_ŽENY9[[#This Row],[Por.]]=4,4,IF(Výsledky_ŽENY9[[#This Row],[Por.]]=5,2,IF(Výsledky_ŽENY9[[#This Row],[Výs. čas]]=99.99,1,IF(Výsledky_ŽENY9[[#This Row],[Výs. čas]]=\"Diskv.\",1,IF(Výsledky_ŽENY9[[#This Row],[Výs. čas]]=\"Neúčasť\",0,2))))))))","v":4},null,null,null,null,null,"--- pravý prúd (PP)"]
[{"$f":"IF(Výsledky_ŽENY9[[#This Row],[Výs. čas]]=\"čas\",\"---\",IF(Výsledky_ŽENY9[[#This Row],[Výs. čas]]=99.99,\"---\",IF(Výsledky_ŽENY9[[#This Row],[Výs. čas]]=\"Diskv.\",\"---\",IF(Výsledky_ŽENY9[[#This Row],[Výs. čas]]=\"Neúčasť\",\"---\",_xlfn.RANK.EQ(Výsledky_ŽENY9[[#This Row],[Výs. čas]],Výsledky_ŽENY9[Výs. čas],1)))))","v":5},"Dohňany",null,26.2,25.67,26.2,{"$f":"IF(Výsledky_ŽENY9[[#This Row],[Por.]]=1,10,IF(Výsledky_ŽENY9[[#This Row],[Por.]]=2,8,IF(Výsledky_ŽENY9[[#This Row],[Por.]]=3,6,IF(Výsledky_ŽENY9[[#This Row],[Por.]]=4,4,IF(Výsledky_ŽENY9[[#This Row],[Por.]]=5,2,IF(Výsledky_ŽENY9[[#This Row],[Výs. čas]]=99.99,1,IF(Výsledky_ŽENY9[[#This Row],[Výs. čas]]=\"Diskv.\",1,IF(Výsledky_ŽENY9[[#This Row],[Výs. čas]]=\"Neúčasť\",0,2))))))))","v":2},"x",null,null,null,null,"--- prestup"]
[{"$f":"IF(Výsledky_ŽENY9[[#This Row],[Výs. čas]]=\"čas\",\"---\",IF(Výsledky_ŽENY9[[#This Row],[Výs. čas]]=99.99,\"---\",IF(Výsledky_ŽENY9[[#This Row],[Výs. čas]]=\"Diskv.\",\"---\",IF(Výsledky_ŽENY9[[#This Row],[Výs. čas]]=\"Neúčasť\",\"---\",_xlfn.RANK.EQ(Výsledky_ŽENY9[[#This Row],[Výs. čas]],Výsledky_ŽENY9[Výs. čas],1)))))","v":"---"},"Ihrište",null,99.99,99.99,{"$f":"IF(AND(ISBLANK(Výsledky_ŽENY9[[#This Row],[PP]])),\"čas\",IF(Výsledky_ŽENY9[[#This Row],[ĽP]]=\"D\",\"Diskv.\",IF(Výsledky_ŽENY9[[#This Row],[PP]]=\"D\",\"Diskv.\",IF(Výsledky_ŽENY9[[#This Row],[ĽP]]=\"n\",\"Neúčasť\",IF(Výsledky_ŽENY9[[#This Row],[PP]]=\"n\",\"Neúčasť\",MAX(SUBSTITUTE(Výsledky_ŽENY9[[#This Row],[ĽP]],\",\",\".\"),SUBSTITUTE(Výsledky_ŽENY9[[#This Row],[PP]],\",\",\".\")))))))","v":99.99},{"$f":"IF(Výsledky_ŽENY9[[#This Row],[Por.]]=1,10,IF(Výsledky_ŽENY9[[#This Row],[Por.]]=2,8,IF(Výsledky_ŽENY9[[#This Row],[Por.]]=3,6,IF(Výsledky_ŽENY9[[#This Row],[Por.]]=4,4,IF(Výsledky_ŽENY9[[#This Row],[Por.]]=5,2,IF(Výsledky_ŽENY9[[#This Row],[Výs. čas]]=99.99,1,IF(Výsledky_ŽENY9[[#This Row],[Výs. čas]]=\"Diskv.\",1,IF(Výsledky_ŽENY9[[#This Row],[Výs. čas]]=\"Neúčasť\",0,2))))))))","v":1},"x"]
[null,null,null,null,null,null,"Prestupov:",{"$f":"COUNTIF(Výsledky_ŽENY9[Prestup],\"X\")","v":5},null,null,null,null,"Dovolený formát zadávaných údajov:"]
[null,null,null,null,null,null,null,null,null,null,null,null,"Družstvo, okres"]
[null,null,null,null,null,null,null,null,null,null,null,null,"--- ľubovoľný text"]
[null,null,null,null,null,null,null,null,null,null,null,null,"Ľavý/pravý prúd"]
[null,null,null,null,null,null,null,null,null,null,null,null,"14.00 --- dokončený pokus"]
[null,null,null,null,null,null,null,null,null,null,null,null,"99.99 --- nedokončený pokus"]
[null,null,null,null,null,null,null,null,null,null,null,null,"D        --- diskvalifikácia družstva"]
[null,null,null,null,null,null,null,null,null,null,null,null,"N        --- neúčasť družstva"]
[null,null,null,null,null,null,null,null,null,null,null,null,"Prestup"]
[null,null,null,null,null,null,null,null,null,null,null,null,"X        --- ak malo družstvo prestup"]
[]
[null,null,null,null,null,null,null,null,null,null,null,null,"TIP: Ak potrebujete do tabuľky pridať nový riadok, presuňte sa do stĺpca \"H\" posledného riadku a stačte klávesu TAB."]

{"sheet":"Výsledky DORASTENCI","index":4,"n_rows":22,"n_cols":13,"rows_kept":22,"cut":false,"hidden":false,"merged":[[0,0,0,7],[0,12,1,12],[1,0,1,7],[21,12,22,12]]}
[{"$f":"'Vstupné údaje'!$B$4","v":"Memoriál baróna Friesenhofa"},null,null,null,null,null,null,null,null,null,null,null,"Návod na plnohodnotnú prácu s výsledkami"]
[{"$f":"CONCATENATE(\"Výsledky \",'Vstupné údaje'!$B$7,\". kola SMHL \",TEXT('Vstupné údaje'!$B$5,\"yyyy\"),\" v kategórii DORASTENCI, ktoré sa konalo \",TEXT('Vstupné údaje'!$B$5,\"dd.mm.yyyy\"),\" o \",TEXT('Vstupné údaje'!$B$6,\"hh:mm\"))","v":"Výsledky 1. kola SMHL 2026 v kategórii DORASTENCI, ktoré sa konalo 06.06.2026 o 14:00"}]
[]
["Por.","Družstvo","Okres","ĽP","PP","Výs. čas","Body","Prestup",null,null,null,null,"Pri zadávaní výsledkov sa vypĺňajú nasledujúce stĺpce (zvyšné sa vypočítajú automaticky):"]
[{"$f":"IF(Výsledky_ŽENY93[[#This Row],[Výs. čas]]=\"čas\",\"---\",IF(Výsledky_ŽENY93[[#This Row],[Výs. čas]]=99.99,\"---\",IF(Výsledky_ŽENY93[[#This Row],[Výs. čas]]=\"Diskv.\",\"---\",IF(Výsledky_ŽENY93[[#This Row],[Výs. čas]]=\"Neúčasť\",\"---\",_xlfn.RANK.EQ(Výsledky_ŽENY93[[#This Row],[Výs. čas]],Výsledky_ŽENY93[Výs. čas],1)))))","v":1},"Zlatníky",null,14.44,15.71,15.71,{"$f":"IF(Výsledky_ŽENY93[[#This Row],[Por.]]=1,10,IF(Výsledky_ŽENY93[[#This Row],[Por.]]=2,8,IF(Výsledky_ŽENY93[[#This Row],[Por.]]=3,6,IF(Výsledky_ŽENY93[[#This Row],[Por.]]=4,4,IF(Výsledky_ŽENY93[[#This Row],[Por.]]=5,2,IF(Výsledky_ŽENY93[[#This Row],[Výs. čas]]=99.99,1,IF(Výsledky_ŽENY93[[#This Row],[Výs. čas]]=\"Diskv.\",1,IF(Výsledky_ŽENY93[[#This Row],[Výs. čas]]=\"Neúčasť\",0,2))))))))","v":10},"x",null,null,null,null,"--- družstvo"]
[{"$f":"IF(Výsledky_ŽENY93[[#This Row],[Výs. čas]]=\"čas\",\"---\",IF(Výsledky_ŽENY93[[#This Row],[Výs. čas]]=99.99,\"---\",IF(Výsledky_ŽENY93[[#This Row],[Výs. čas]]=\"Diskv.\",\"---\",IF(Výsledky_ŽENY93[[#This Row],[Výs. čas]]=\"Neúčasť\",\"---\",_xlfn.RANK.EQ(Výsledky_ŽENY93[[#This Row],[Výs. čas]],Výsledky_ŽENY93[Výs. čas],1)))))","v":2},"Horenická Hôrka",null,15.73,15.85,15.85,{"$f":"IF(Výsledky_ŽENY93[[#This Row],[Por.]]=1,10,IF(Výsledky_ŽENY93[[#This Row],[Por.]]=2,8,IF(Výsledky_ŽENY93[[#This Row],[Por.]]=3,6,IF(Výsledky_ŽENY93[[#This Row],[Por.]]=4,4,IF(Výsledky_ŽENY93[[#This Row],[Por.]]=5,2,IF(Výsledky_ŽENY93[[#This Row],[Výs. čas]]=99.99,1,IF(Výsledky_ŽENY93[[#This Row],[Výs. čas]]=\"Diskv.\",1,IF(Výsledky_ŽENY93[[#This Row],[Výs. čas]]=\"Neúčasť\",0,2))))))))","v":8},"x",null,null,null,null,"--- okres"]
[{"$f":"IF(Výsledky_ŽENY93[[#This Row],[Výs. čas]]=\"čas\",\"---\",IF(Výsledky_ŽENY93[[#This Row],[Výs. čas]]=99.99,\"---\",IF(Výsledky_ŽENY93[[#This Row],[Výs. čas]]=\"Diskv.\",\"---\",IF(Výsledky_ŽENY93[[#This Row],[Výs. čas]]=\"Neúčasť\",\"---\",_xlfn.RANK.EQ(Výsledky_ŽENY93[[#This Row],[Výs. čas]],Výsledky_ŽENY93[Výs. čas],1)))))","v":3},"Podlužany",null,16.13,14.86,16.13,{"$f":"IF(Výsledky_ŽENY93[[#This Row],[Por.]]=1,10,IF(Výsledky_ŽENY93[[#This Row],[Por.]]=2,8,IF(Výsledky_ŽENY93[[#This Row],[Por.]]=3,6,IF(Výsledky_ŽENY93[[#This Row],[Por.]]=4,4,IF(Výsledky_ŽENY93[[#This Row],[Por.]]=5,2,IF(Výsledky_ŽENY93[[#This Row],[Výs. čas]]=99.99,1,IF(Výsledky_ŽENY93[[#This Row],[Výs. čas]]=\"Diskv.\",1,IF(Výsledky_ŽENY93[[#This Row],[Výs. čas]]=\"Neúčasť\",0,2))))))))","v":6},null,null,null,null,null,"--- ľavý prúd (ĽP)"]
[{"$f":"IF(Výsledky_ŽENY93[[#This Row],[Výs. čas]]=\"čas\",\"---\",IF(Výsledky_ŽENY93[[#This Row],[Výs. čas]]=99.99,\"---\",IF(Výsledky_ŽENY93[[#This Row],[Výs. čas]]=\"Diskv.\",\"---\",IF(Výsledky_ŽENY93[[#This Row],[Výs. čas]]=\"Neúčasť\",\"---\",_xlfn.RANK.EQ(Výsledky_ŽENY93[[#This Row],[Výs. čas]],Výsledky_ŽENY93[Výs. čas],1)))))","v":4},"Veľké Čereňany",null,41.47,40.56,41.47,{"$f":"IF(Výsledky_ŽENY93[[#This Row],[Por.]]=1,10,IF(Výsledky_ŽENY93[[#This Row],[Por.]]=2,8,IF(Výsledky_ŽENY93[[#This Row],[Por.]]=3,6,IF(Výsledky_ŽENY93[[#This Row],[Por.]]=4,4,IF(Výsledky_ŽENY93[[#This Row],[Por.]]=5,2,IF(Výsledky_ŽENY93[[#This Row],[Výs. čas]]=99.99,1,IF(Výsledky_ŽENY93[[#This Row],[Výs. čas]]=\"Diskv.\",1,IF(Výsledky_ŽENY93[[#This Row],[Výs. čas]]=\"Neúčasť\",0,2))))))))","v":4},null,null,null,null,null,"--- pravý prúd (PP)"]
[{"$f":"IF(Výsledky_ŽENY93[[#This Row],[Výs. čas]]=\"čas\",\"---\",IF(Výsledky_ŽENY93[[#This Row],[Výs. čas]]=99.99,\"---\",IF(Výsledky_ŽENY93[[#This Row],[Výs. čas]]=\"Diskv.\",\"---\",IF(Výsledky_ŽENY93[[#This Row],[Výs. čas]]=\"Neúčasť\",\"---\",_xlfn.RANK.EQ(Výsledky_ŽENY93[[#This Row],[Výs. čas]],Výsledky_ŽENY93[Výs. čas],1)))))","v":"---"},"Lehota pod Vtáčnikom",null,99.99,99.99,{"$f":"IF(AND(ISBLANK(Výsledky_ŽENY93[[#This Row],[PP]])),\"čas\",IF(Výsledky_ŽENY93[[#This Row],[ĽP]]=\"D\",\"Diskv.\",IF(Výsledky_ŽENY93[[#This Row],[PP]]=\"D\",\"Diskv.\",IF(Výsledky_ŽENY93[[#This Row],[ĽP]]=\"n\",\"Neúčasť\",IF(Výsledky_ŽENY93[[#This Row],[PP]]=\"n\",\"Neúčasť\",MAX(SUBSTITUTE(Výsledky_ŽENY93[[#This Row],[ĽP]],\",\",\".\"),SUBSTITUTE(Výsledky_ŽENY93[[#This Row],[PP]],\",\",\".\")))))))","v":99.99},{"$f":"IF(Výsledky_ŽENY93[[#This Row],[Por.]]=1,10,IF(Výsledky_ŽENY93[[#This Row],[Por.]]=2,8,IF(Výsledky_ŽENY93[[#This Row],[Por.]]=3,6,IF(Výsledky_ŽENY93[[#This Row],[Por.]]=4,4,IF(Výsledky_ŽENY93[[#This Row],[Por.]]=5,2,IF(Výsledky_ŽENY93[[#This Row],[Výs. čas]]=99.99,1,IF(Výsledky_ŽENY93[[#This Row],[Výs. čas]]=\"Diskv.\",1,IF(Výsledky_ŽENY93[[#This Row],[Výs. čas]]=\"Neúčasť\",0,2))))))))","v":1},null,null,null,null,null,"--- prestup"]
[{"$f":"IF(Výsledky_ŽENY93[[#This Row],[Výs. čas]]=\"čas\",\"---\",IF(Výsledky_ŽENY93[[#This Row],[Výs. čas]]=99.99,\"---\",IF(Výsledky_ŽENY93[[#This Row],[Výs. čas]]=\"Diskv.\",\"---\",IF(Výsledky_ŽENY93[[#This Row],[Výs. čas]]=\"Neúčasť\",\"---\",_xlfn.RANK.EQ(Výsledky_ŽENY93[[#This Row],[Výs. čas]],Výsledky_ŽENY93[Výs. čas],1)))))","v":"---"},null,null,null,null,{"$f":"IF(AND(ISBLANK(Výsledky_ŽENY93[[#This Row],[PP]])),\"čas\",IF(Výsledky_ŽENY93[[#This Row],[ĽP]]=\"D\",\"Diskv.\",IF(Výsledky_ŽENY93[[#This Row],[PP]]=\"D\",\"Diskv.\",IF(Výsledky_ŽENY93[[#This Row],[ĽP]]=\"n\",\"Neúčasť\",IF(Výsledky_ŽENY93[[#This Row],[PP]]=\"n\",\"Neúčasť\",MAX(SUBSTITUTE(Výsledky_ŽENY93[[#This Row],[ĽP]],\",\",\".\"),SUBSTITUTE(Výsledky_ŽENY93[[#This Row],[PP]],\",\",\".\")))))))","v":"čas"},{"$f":"IF(Výsledky_ŽENY93[[#This Row],[Por.]]=1,10,IF(Výsledky_ŽENY93[[#This Row],[Por.]]=2,8,IF(Výsledky_ŽENY93[[#This Row],[Por.]]=3,6,IF(Výsledky_ŽENY93[[#This Row],[Por.]]=4,4,IF(Výsledky_ŽENY93[[#This Row],[Por.]]=5,2,IF(Výsledky_ŽENY93[[#This Row],[Výs. čas]]=99.99,1,IF(Výsledky_ŽENY93[[#This Row],[Výs. čas]]=\"Diskv.\",1,IF(Výsledky_ŽENY93[[#This Row],[Výs. čas]]=\"Neúčasť\",0,2))))))))","v":2}]
[{"$f":"IF(Výsledky_ŽENY93[[#This Row],[Výs. čas]]=\"čas\",\"---\",IF(Výsledky_ŽENY93[[#This Row],[Výs. čas]]=99.99,\"---\",IF(Výsledky_ŽENY93[[#This Row],[Výs. čas]]=\"Diskv.\",\"---\",IF(Výsledky_ŽENY93[[#This Row],[Výs. čas]]=\"Neúčasť\",\"---\",_xlfn.RANK.EQ(Výsledky_ŽENY93[[#This Row],[Výs. čas]],Výsledky_ŽENY93[Výs. čas],1)))))","v":"---"},"Nosice",null,"D","D","Diskv.",{"$f":"IF(Výsledky_ŽENY93[[#This Row],[Por.]]=1,10,IF(Výsledky_ŽENY93[[#This Row],[Por.]]=2,8,IF(Výsledky_ŽENY93[[#This Row],[Por.]]=3,6,IF(Výsledky_ŽENY93[[#This Row],[Por.]]=4,4,IF(Výsledky_ŽENY93[[#This Row],[Por.]]=5,2,IF(Výsledky_ŽENY93[[#This Row],[Výs. čas]]=99.99,1,IF(Výsledky_ŽENY93[[#This Row],[Výs. čas]]=\"Diskv.\",1,IF(Výsledky_ŽENY93[[#This Row],[Výs. čas]]=\"Neúčasť\",0,2))))))))","v":1},null,null,null,null,null,"Dovolený formát zadávaných údajov:"]
[null,null,null,null,null,null,"Prestupov:",{"$f":"COUNTIF(Výsledky_ŽENY93[Prestup],\"X\")","v":2},null,null,null,null,"Družstvo, okres"]
[null,null,null,null,null,null,null,null,null,null,null,null,"--- ľubovoľný text"]
[null,null,null,null,null,null,null,null,null,null,null,null,"Ľavý/pravý prúd"]
[null,null,null,null,null,null,null,null,null,null,null,null,"14.00 --- dokončený pokus"]
[null,null,null,null,null,null,null,null,null,null,null,null,"99.99 --- nedokončený pokus"]
[null,null,null,null,null,null,null,null,null,null,null,null,"D        --- diskvalifikácia družstva"]
[null,null,null,null,null,null,null,null,null,null,null,null,"N        --- neúčasť družstva"]
[null,null,null,null,null,null,null,null,null,null,null,null,"Prestup"]
[null,null,null,null,null,null,null,null,null,null,null,null,"X        --- ak malo družstvo prestup"]
[]
[null,null,null,null,null,null,null,null,null,null,null,null,"TIP: Ak potrebujete do tabuľky pridať nový riadok, presuňte sa do stĺpca \"H\" posledného riadku a stačte klávesu TAB."]

{"sheet":"Výsledky DORASTENKY","index":5,"n_rows":22,"n_cols":13,"rows_kept":22,"cut":false,"hidden":false,"merged":[[0,0,0,7],[0,12,1,12],[1,0,1,7],[21,12,22,12]]}
[{"$f":"'Vstupné údaje'!$B$4","v":"Memoriál baróna Friesenhofa"},null,null,null,null,null,null,null,null,null,null,null,"Návod na plnohodnotnú prácu s výsledkami"]
[{"$f":"CONCATENATE(\"Výsledky \",'Vstupné údaje'!$B$7,\". kola SMHL \",TEXT('Vstupné údaje'!$B$5,\"yyyy\"),\" v kategórii DORASTENKY, ktoré sa konalo \",TEXT('Vstupné údaje'!$B$5,\"dd.mm.yyyy\"),\" o \",TEXT('Vstupné údaje'!$B$6,\"hh:mm\"))","v":"Výsledky 1. kola SMHL 2026 v kategórii DORASTENKY, ktoré sa konalo 06.06.2026 o 14:00"}]
[]
["Por.","Družstvo","Okres","ĽP","PP","Výs. čas","Body","Prestup",null,null,null,null,"Pri zadávaní výsledkov sa vypĺňajú nasledujúce stĺpce (zvyšné sa vypočítajú automaticky):"]
[{"$f":"IF(Výsledky_ŽENY9315[[#This Row],[Výs. čas]]=\"čas\",\"---\",IF(Výsledky_ŽENY9315[[#This Row],[Výs. čas]]=99.99,\"---\",IF(Výsledky_ŽENY9315[[#This Row],[Výs. čas]]=\"Diskv.\",\"---\",IF(Výsledky_ŽENY9315[[#This Row],[Výs. čas]]=\"Neúčasť\",\"---\",_xlfn.RANK.EQ(Výsledky_ŽENY9315[[#This Row],[Výs. čas]],Výsledky_ŽENY9315[Výs. čas],1)))))","v":1},"Horenicka Hôrka",null,18.46,18.63,18.63,{"$f":"IF(Výsledky_ŽENY9315[[#This Row],[Por.]]=1,10,IF(Výsledky_ŽENY9315[[#This Row],[Por.]]=2,8,IF(Výsledky_ŽENY9315[[#This Row],[Por.]]=3,6,IF(Výsledky_ŽENY9315[[#This Row],[Por.]]=4,4,IF(Výsledky_ŽENY9315[[#This Row],[Por.]]=5,2,IF(Výsledky_ŽENY9315[[#This Row],[Výs. čas]]=99.99,1,IF(Výsledky_ŽENY9315[[#This Row],[Výs. čas]]=\"Diskv.\",1,IF(Výsledky_ŽENY9315[[#This Row],[Výs. čas]]=\"Neúčasť\",0,2))))))))","v":10},null,null,null,null,null,"--- družstvo"]
[{"$f":"IF(Výsledky_ŽENY9315[[#This Row],[Výs. čas]]=\"čas\",\"---\",IF(Výsledky_ŽENY9315[[#This Row],[Výs. čas]]=99.99,\"---\",IF(Výsledky_ŽENY9315[[#This Row],[Výs. čas]]=\"Diskv.\",\"---\",IF(Výsledky_ŽENY9315[[#This Row],[Výs. čas]]=\"Neúčasť\",\"---\",_xlfn.RANK.EQ(Výsledky_ŽENY9315[[#This Row],[Výs. čas]],Výsledky_ŽENY9315[Výs. čas],1)))))","v":2},"Zlatníky",null,20.77,21.04,21.04,{"$f":"IF(Výsledky_ŽENY9315[[#This Row],[Por.]]=1,10,IF(Výsledky_ŽENY9315[[#This Row],[Por.]]=2,8,IF(Výsledky_ŽENY9315[[#This Row],[Por.]]=3,6,IF(Výsledky_ŽENY9315[[#This Row],[Por.]]=4,4,IF(Výsledky_ŽENY9315[[#This Row],[Por.]]=5,2,IF(Výsledky_ŽENY9315[[#This Row],[Výs. čas]]=99.99,1,IF(Výsledky_ŽENY9315[[#This Row],[Výs. čas]]=\"Diskv.\",1,IF(Výsledky_ŽENY9315[[#This Row],[Výs. čas]]=\"Neúčasť\",0,2))))))))","v":8},null,null,null,null,null,"--- okres"]
[{"$f":"IF(Výsledky_ŽENY9315[[#This Row],[Výs. čas]]=\"čas\",\"---\",IF(Výsledky_ŽENY9315[[#This Row],[Výs. čas]]=99.99,\"---\",IF(Výsledky_ŽENY9315[[#This Row],[Výs. čas]]=\"Diskv.\",\"---\",IF(Výsledky_ŽENY9315[[#This Row],[Výs. čas]]=\"Neúčasť\",\"---\",_xlfn.RANK.EQ(Výsledky_ŽENY9315[[#This Row],[Výs. čas]],Výsledky_ŽENY9315[Výs. čas],1)))))","v":3},"Nosice",null,26.36,25.99,26.36,{"$f":"IF(Výsledky_ŽENY9315[[#This Row],[Por.]]=1,10,IF(Výsledky_ŽENY9315[[#This Row],[Por.]]=2,8,IF(Výsledky_ŽENY9315[[#This Row],[Por.]]=3,6,IF(Výsledky_ŽENY9315[[#This Row],[Por.]]=4,4,IF(Výsledky_ŽENY9315[[#This Row],[Por.]]=5,2,IF(Výsledky_ŽENY9315[[#This Row],[Výs. čas]]=99.99,1,IF(Výsledky_ŽENY9315[[#This Row],[Výs. čas]]=\"Diskv.\",1,IF(Výsledky_ŽENY9315[[#This Row],[Výs. čas]]=\"Neúčasť\",0,2))))))))","v":6},"x",null,null,null,null,"--- ľavý prúd (ĽP)"]
[{"$f":"IF(Výsledky_ŽENY9315[[#This Row],[Výs. čas]]=\"čas\",\"---\",IF(Výsledky_ŽENY9315[[#This Row],[Výs. čas]]=99.99,\"---\",IF(Výsledky_ŽENY9315[[#This Row],[Výs. čas]]=\"Diskv.\",\"---\",IF(Výsledky_ŽENY9315[[#This Row],[Výs. čas]]=\"Neúčasť\",\"---\",_xlfn.RANK.EQ(Výsledky_ŽENY9315[[#This Row],[Výs. čas]],Výsledky_ŽENY9315[Výs. čas],1)))))","v":4},"Rybany",null,28.46,28.25,28.46,{"$f":"IF(Výsledky_ŽENY9315[[#This Row],[Por.]]=1,10,IF(Výsledky_ŽENY9315[[#This Row],[Por.]]=2,8,IF(Výsledky_ŽENY9315[[#This Row],[Por.]]=3,6,IF(Výsledky_ŽENY9315[[#This Row],[Por.]]=4,4,IF(Výsledky_ŽENY9315[[#This Row],[Por.]]=5,2,IF(Výsledky_ŽENY9315[[#This Row],[Výs. čas]]=99.99,1,IF(Výsledky_ŽENY9315[[#This Row],[Výs. čas]]=\"Diskv.\",1,IF(Výsledky_ŽENY9315[[#This Row],[Výs. čas]]=\"Neúčasť\",0,2))))))))","v":4},"x",null,null,null,null,"--- pravý prúd (PP)"]
[{"$f":"IF(Výsledky_ŽENY9315[[#This Row],[Výs. čas]]=\"čas\",\"---\",IF(Výsledky_ŽENY9315[[#This Row],[Výs. čas]]=99.99,\"---\",IF(Výsledky_ŽENY9315[[#This Row],[Výs. čas]]=\"Diskv.\",\"---\",IF(Výsledky_ŽENY9315[[#This Row],[Výs. čas]]=\"Neúčasť\",\"---\",_xlfn.RANK.EQ(Výsledky_ŽENY9315[[#This Row],[Výs. čas]],Výsledky_ŽENY9315[Výs. čas],1)))))","v":"---"},null,null,null,null,{"$f":"IF(AND(ISBLANK(Výsledky_ŽENY9315[[#This Row],[PP]])),\"čas\",IF(Výsledky_ŽENY9315[[#This Row],[ĽP]]=\"D\",\"Diskv.\",IF(Výsledky_ŽENY9315[[#This Row],[PP]]=\"D\",\"Diskv.\",IF(Výsledky_ŽENY9315[[#This Row],[ĽP]]=\"n\",\"Neúčasť\",IF(Výsledky_ŽENY9315[[#This Row],[PP]]=\"n\",\"Neúčasť\",MAX(SUBSTITUTE(Výsledky_ŽENY9315[[#This Row],[ĽP]],\",\",\".\"),SUBSTITUTE(Výsledky_ŽENY9315[[#This Row],[PP]],\",\",\".\")))))))","v":"čas"},{"$f":"IF(Výsledky_ŽENY9315[[#This Row],[Por.]]=1,10,IF(Výsledky_ŽENY9315[[#This Row],[Por.]]=2,8,IF(Výsledky_ŽENY9315[[#This Row],[Por.]]=3,6,IF(Výsledky_ŽENY9315[[#This Row],[Por.]]=4,4,IF(Výsledky_ŽENY9315[[#This Row],[Por.]]=5,2,IF(Výsledky_ŽENY9315[[#This Row],[Výs. čas]]=99.99,1,IF(Výsledky_ŽENY9315[[#This Row],[Výs. čas]]=\"Diskv.\",1,IF(Výsledky_ŽENY9315[[#This Row],[Výs. čas]]=\"Neúčasť\",0,2))))))))","v":2},null,null,null,null,null,"--- prestup"]
[{"$f":"IF(Výsledky_ŽENY9315[[#This Row],[Výs. čas]]=\"čas\",\"---\",IF(Výsledky_ŽENY9315[[#This Row],[Výs. čas]]=99.99,\"---\",IF(Výsledky_ŽENY9315[[#This Row],[Výs. čas]]=\"Diskv.\",\"---\",IF(Výsledky_ŽENY9315[[#This Row],[Výs. čas]]=\"Neúčasť\",\"---\",_xlfn.RANK.EQ(Výsledky_ŽENY9315[[#This Row],[Výs. čas]],Výsledky_ŽENY9315[Výs. čas],1)))))","v":"---"},null,null,null,null,{"$f":"IF(AND(ISBLANK(Výsledky_ŽENY9315[[#This Row],[PP]])),\"čas\",IF(Výsledky_ŽENY9315[[#This Row],[ĽP]]=\"D\",\"Diskv.\",IF(Výsledky_ŽENY9315[[#This Row],[PP]]=\"D\",\"Diskv.\",IF(Výsledky_ŽENY9315[[#This Row],[ĽP]]=\"n\",\"Neúčasť\",IF(Výsledky_ŽENY9315[[#This Row],[PP]]=\"n\",\"Neúčasť\",MAX(SUBSTITUTE(Výsledky_ŽENY9315[[#This Row],[ĽP]],\",\",\".\"),SUBSTITUTE(Výsledky_ŽENY9315[[#This Row],[PP]],\",\",\".\")))))))","v":"čas"},{"$f":"IF(Výsledky_ŽENY9315[[#This Row],[Por.]]=1,10,IF(Výsledky_ŽENY9315[[#This Row],[Por.]]=2,8,IF(Výsledky_ŽENY9315[[#This Row],[Por.]]=3,6,IF(Výsledky_ŽENY9315[[#This Row],[Por.]]=4,4,IF(Výsledky_ŽENY9315[[#This Row],[Por.]]=5,2,IF(Výsledky_ŽENY9315[[#This Row],[Výs. čas]]=99.99,1,IF(Výsledky_ŽENY9315[[#This Row],[Výs. čas]]=\"Diskv.\",1,IF(Výsledky_ŽENY9315[[#This Row],[Výs. čas]]=\"Neúčasť\",0,2))))))))","v":2}]
[{"$f":"IF(Výsledky_ŽENY9315[[#This Row],[Výs. čas]]=\"čas\",\"---\",IF(Výsledky_ŽENY9315[[#This Row],[Výs. čas]]=99.99,\"---\",IF(Výsledky_ŽENY9315[[#This Row],[Výs. čas]]=\"Diskv.\",\"---\",IF(Výsledky_ŽENY9315[[#This Row],[Výs. čas]]=\"Neúčasť\",\"---\",_xlfn.RANK.EQ(Výsledky_ŽENY9315[[#This Row],[Výs. čas]],Výsledky_ŽENY9315[Výs. čas],1)))))","v":"---"},null,null,null,null,{"$f":"IF(AND(ISBLANK(Výsledky_ŽENY9315[[#This Row],[PP]])),\"čas\",IF(Výsledky_ŽENY9315[[#This Row],[ĽP]]=\"D\",\"Diskv.\",IF(Výsledky_ŽENY9315[[#This Row],[PP]]=\"D\",\"Diskv.\",IF(Výsledky_ŽENY9315[[#This Row],[ĽP]]=\"n\",\"Neúčasť\",IF(Výsledky_ŽENY9315[[#This Row],[PP]]=\"n\",\"Neúčasť\",MAX(SUBSTITUTE(Výsledky_ŽENY9315[[#This Row],[ĽP]],\",\",\".\"),SUBSTITUTE(Výsledky_ŽENY9315[[#This Row],[PP]],\",\",\".\")))))))","v":"čas"},{"$f":"IF(Výsledky_ŽENY9315[[#This Row],[Por.]]=1,10,IF(Výsledky_ŽENY9315[[#This Row],[Por.]]=2,8,IF(Výsledky_ŽENY9315[[#This Row],[Por.]]=3,6,IF(Výsledky_ŽENY9315[[#This Row],[Por.]]=4,4,IF(Výsledky_ŽENY9315[[#This Row],[Por.]]=5,2,IF(Výsledky_ŽENY9315[[#This Row],[Výs. čas]]=99.99,1,IF(Výsledky_ŽENY9315[[#This Row],[Výs. čas]]=\"Diskv.\",1,IF(Výsledky_ŽENY9315[[#This Row],[Výs. čas]]=\"Neúčasť\",0,2))))))))","v":2},null,null,null,null,null,"Dovolený formát zadávaných údajov:"]
[null,null,null,null,null,null,"Prestupov:",{"$f":"COUNTIF(Výsledky_ŽENY9315[Prestup],\"X\")","v":2},null,null,null,null,"Družstvo, okres"]
[null,null,null,null,null,null,null,null,null,null,null,null,"--- ľubovoľný text"]
[null,null,null,null,null,null,null,null,null,null,null,null,"Ľavý/pravý prúd"]
[null,null,null,null,null,null,null,null,null,null,null,null,"14.00 --- dokončený pokus"]
[null,null,null,null,null,null,null,null,null,null,null,null,"99.99 --- nedokončený pokus"]
[null,null,null,null,null,null,null,null,null,null,null,null,"D        --- diskvalifikácia družstva"]
[null,null,null,null,null,null,null,null,null,null,null,null,"N        --- neúčasť družstva"]
[null,null,null,null,null,null,null,null,null,null,null,null,"Prestup"]
[null,null,null,null,null,null,null,null,null,null,null,null,"X        --- ak malo družstvo prestup"]
[]
[null,null,null,null,null,null,null,null,null,null,null,null,"TIP: Ak potrebujete do tabuľky pridať nový riadok, presuňte sa do stĺpca \"H\" posledného riadku a stačte klávesu TAB."]